Cogmind - Beta 9.1 @@@ ROGUE MODE // 2019.10.25 @ 14:35:17 Player: cptwinky Result: Destroyed by G-73 Enforcer with Heavy Laser Performance ------------- Evolutions (8) 4000 Regions Visited (37) 7400 Robots Destroyed (292) 1460 Value Destroyed (15393) 15393 Prototype IDs (99) 1980 Alien Tech Used (0) 0 Bonus (14770) 14770 TOTAL SCORE: 45003 Bonus ------- High Alert Combat Kills 2038 Follower Combat Kills 3085 Entered Garrisons 400 Used RIF Installer 1000 Network Hubs Disabled 400 Aligned with FarCom 300 Met Data Miner 300 Met Imprinter 300 Met Warlord at Base 500 MAIN.C Attacked Warlord 500 Built Enhanced Grunts 300 A7 Reached Mainframe 300 Met R17 at Cetus 500 Hacked Protovariant 500 Met R17 at Research 2000 Met Warlord at Research 2000 Scanned by Researcher 500 Friendly Fire -153 Cogmind --------- Core Integrity 0/1450 Matter 367/700 Energy 266/340 System Corruption 16% Temperature Cool (18) Location -2/Section 7 Parts ------- Power (2) Particle Reactor Propulsion (6) Myomer Leg Myomer Leg Myomer Leg Myomer Leg Biometal Leg Utility (12) Experimental Cooling System Advanced Coolant Injector High-capacity Storage Unit High-capacity Storage Unit High-capacity Storage Unit High-capacity Storage Unit Advanced Matter Compressor Advanced Target Analyzer Layered Light Armor Plating Layered Light Armor Plating Experimental Focal Shield Relay Coupler [NC] (22) Weapon (3) Hypervelocity Railgun Hypervelocity Railgun Hypervelocity Mass Driver Inventory (36) Advanced Cooling System Experimental Sensor Array Layered Light Armor Plating Layered Light Armor Plating System Mapper Relay Coupler [NC] (32) Relay Coupler [ARC] (12) Relay Coupler [Swarmer] (48) Relay Coupler [Brawler] (34) Relay Coupler [Duelist] (32) Relay Coupler [Sentry] (26) Advanced Component Analysis Suite System Purifier Vortex Rail Heavy Machine Gun KE Penetrator KE Penetrator Gamma Bomb Array Micro-nuke Launcher Improved Remote Datajack Sigix Broadsword Plasma Lance Plasma Lance Peak State ------------ Power Light Particle Reactor Light Particle Reactor Propulsion Armored Heavy Treads Advanced Heavy Treads Centrium Heavy Treads Utility Advanced Cooling System High-capacity Storage Unit High-capacity Storage Unit High-capacity Storage Unit High-capacity Storage Unit Advanced Signal Interpreter Centrium Light Armor Plating Centrium Light Armor Plating Centrium Light Armor Plating Centrium Medium Armor Plating Advanced Hacking Suite Advanced Component Analysis Suite Weapon Enhanced Nova Cannon Plasma Lance Plasma Lance Inventory Light Antimatter Reactor Improved Heavy Treads Centrium Heavy Treads Biometal Heavy Treads Advanced Heat Sink Advanced Coolant Injector Advanced Matter Compressor Experimental Sensor Array System Mapper Relay Coupler [NC] Relay Coupler [NC] Relay Coupler [NC] Relay Coupler [Swarmer] Relay Coupler [Grunt] Relay Coupler [Sentry] System Purifier Vortex Rail Enhanced Nova Cannon Enhanced Nova Cannon Heavy Machine Gun KE Penetrator KE Penetrator Hypervelocity Railgun Hypervelocity Railgun Hypervelocity Railgun Hypervelocity Mass Driver Hypervelocity Mass Driver Gamma Bomb Array Micro-nuke Launcher Improved Remote Datajack Plasma Lance Plasma Lance [Rating: 177] Favorites ----------- Power Light Antimatter Reactor Engine Improved Ion Engine Power Core Micro Fission Core Reactor Light Antimatter Reactor Propulsion Biometal Heavy Treads Treads Biometal Heavy Treads Leg Titanium Leg Wheel Compact Wheel Hover Unit Aerolev Unit Utility High-capacity Storage Unit Device Advanced Heat Sink Storage High-capacity Storage Unit Processor Advanced Signal Interpreter Hackware Advanced Hacking Suite Protection Centrium Medium Armor Plating Weapon Improved KE Penetrator Energy Gun Spread Laser Energy Cannon Enhanced Nova Cannon Ballistic Gun Improved KE Penetrator Ballistic Cannon Hypervelocity Mass Driver Launcher Proton Missile Launcher Special Weapon Improved Remote Datajack Slashing Weapon Plasma Sword Piercing Weapon Spear Special Melee Weapon Improved Datajack Build | -11 -10 -10 -9 -9 -9 -8 -8 -8 -7 -7 -7 -7 -6 -6 -6 -6 -6 -5 -5 -5 -5 -5 -5 -5 -4 -4 -4 -4 -4 -4 -3 -3 -3 -2 -2 -2 -2 ------- Run | Scr Mat Min Mat Min Exi Min Mat Sto Fac Low Low Dat Pro Fac Low Low Zio Pro Fac Was Fac Upp Upp War Pro Fac Ext Cet Arc Hub Res Tes Gar Res Qua Gar Sec Slots Evolved 16 | . . . 2 . . . 2 . 2 . . . . 2 . . . . 2 . . . . . . 2 . . . . 2 . . 2 . . . Power 1 | . . . . . . . . . . . . . . . . . . . 1 . . . . . . . . . . . . . . . . . . Propulsion 4 | . . . . . . . 1 . . . . . . 1 . . . . 1 . . . . . . . . . . . . . . 1 . . . Utility 10 | . . . 2 . . . 1 . 2 . . . . 1 . . . . . . . . . . . 2 . . . . 1 . . 1 . . . Weapon 1 | . . . . . . . . . . . . . . . . . . . . . . . . . . . . . . . 1 . . . . . . Parts Attached 431 | 7 7 9 20 2 4 1 19 19 11 1 9 5 1 11 5 1 9 5 24 2 15 3 1 10 2 18 20 14 2 7 14 11 19 45 26 20 32 Power 44 | 1 . 1 2 . . 1 . 2 1 . . 1 . . . . 1 . 3 1 1 . . 1 . 1 2 2 1 . . 1 4 8 5 4 . Engine 7 | 1 . 1 2 . . 1 . . . . . . . . . . . . 2 . . . . . . . . . . . . . . . . . . Core 8 | . . . . . . . . 2 1 . . 1 . . . . . . 1 1 1 . . . . . . . 1 . . . . . . . . Reactor 29 | . . . . . . . . . . . . . . . . . 1 . . . . . . 1 . 1 2 2 . . . 1 4 8 5 4 . Propulsion 78 | 2 2 3 4 . . . 4 5 . . 2 1 . 3 . . 1 . 8 . 5 1 . 1 . 3 3 3 1 . 2 1 1 9 3 2 8 Treads 35 | . 1 1 2 . . . . 1 . . . . . . . . . . 1 . . . . . . 3 3 3 1 . 2 1 1 9 3 2 1 Leg 14 | . . . 2 . . . 4 1 . . . . . . . . . . . . . . . . . . . . . . . . . . . . 7 Wheel 5 | 2 1 2 . . . . . . . . . . . . . . . . . . . . . . . . . . . . . . . . . . . Hover 24 | . . . . . . . . 3 . . 2 1 . 3 . . 1 . 7 . 5 1 . 1 . . . . . . . . . . . . . Flight . | . . . . . . . . . . . . . . . . . . . . . . . . . . . . . . . . . . . . . . Utility 174 | 2 1 . 6 2 2 . 6 2 6 1 6 1 1 8 4 1 3 5 8 . 6 1 . 6 1 9 9 5 . 4 8 5 8 16 10 6 15 Device 68 | . . . 2 . . . 3 . 3 . 3 . 1 1 2 1 . 1 2 . 2 1 . 3 1 3 6 1 . 1 6 4 2 4 4 3 8 Storage 28 | 2 . . 2 2 2 . 1 2 . . 1 . . 2 . . . . 3 . . . . 1 . 4 . 3 . 1 . . 1 . . . 1 Processor 13 | . . . . . . . 1 . . . . . . 1 . . . . 3 . . . . 1 . . 2 . . . . 1 . 2 1 . 1 Hackware 15 | . . . . . . . 1 . 2 . . . . 1 . . 2 3 . . . . . . . 1 . . . . . . 1 1 1 1 1 Protection 50 | . 1 . 2 . . . . . 1 1 2 1 . 3 2 . 1 1 . . 4 . . 1 . 1 1 1 . 2 2 . 4 9 4 2 4 Artifact . | . . . . . . . . . . . . . . . . . . . . . . . . . . . . . . . . . . . . . . Weapon 135 | 2 4 5 8 . 2 . 9 10 4 . 1 2 . . 1 . 4 . 5 1 3 1 1 2 1 5 6 4 . 3 4 4 6 12 8 8 9 Energy Gun 22 | . 1 . 4 . 1 . 5 2 1 . . 2 . . . . . . 2 1 2 . . 1 . . . . . . . . . . . . . Energy Cannon 9 | . . . . . . . . . . . . . . . . . . . . . . . . . . 2 1 . . . 1 . . 1 2 . 2 Ballistic Gun 49 | 2 2 3 2 . . . 4 3 . . . . . . . . . . . . . . . . . 1 3 3 . . 3 1 4 6 3 6 3 Ballistic Cannon 9 | . . 1 . . . . . . . . . . . . . . . . . . . . . . . 1 1 . . 1 . . . 1 1 1 2 Launcher 11 | . 1 1 . . . . . 2 1 . 1 . . . . . . . . . . . . . . . 1 1 . 1 . . 1 1 . . . Special Weapon 7 | . . . . . . . . . . . . . . . . . 1 . . . . . . . . . . . . . . . 1 . 2 1 2 Impact Weapon . | . . . . . . . . . . . . . . . . . . . . . . . . . . . . . . . . . . . . . . Slashing Weapon 18 | . . . 2 . . . . 3 1 . . . . . 1 . 3 . 1 . 1 . 1 . 1 1 . . . 1 . 2 . . . . . Piercing Weapon 7 | . . . . . . . . . 1 . . . . . . . . . . . . 1 . 1 . . . . . . . 1 . 3 . . . Special Melee Weapon 3 | . . . . . 1 . . . . . . . . . . . . . 2 . . . . . . . . . . . . . . . . . . Unidentified Prototypes 17 | . . . . . . . . 2 1 . . . . . . . . 3 . . . . . 4 . 1 . 3 . . . 1 . 2 . . . Parts Lost 106 | . 1 1 2 . . . 9 5 . . 1 3 . . . . . 8 5 . 5 . . . . . 4 . 1 2 . 2 3 25 12 3 14 Power 13 | . . . . . . . . . . . . 1 . . . . . . . . 1 . . . . . . . 1 . . . . 7 2 . 1 Propulsion 27 | . 1 . . . . . 2 4 . . 1 . . . . . . 3 . . 3 . . . . . 1 . . 1 . . . 4 1 1 5 Utility 35 | . . . . . . . 2 . . . . . . . . . . 3 2 . 1 . . . . . 1 . . 1 . 2 3 9 5 2 4 Weapon 31 | . . 1 2 . . . 5 1 . . . 2 . . . . . 2 3 . . . . . . . 2 . . . . . . 5 4 . 4 Highest Loss Streak 12 | . 1 1 1 . . . 4 5 . . 1 3 . . . . . 7 3 . 5 . . . . . 2 . 1 1 . 2 3 12 4 2 6 Average Slot Usage (%) 91 | . 100 99 97 100 94 88 92 96 96 100 99 93 92 95 100 100 95 76 84 100 99 100 100 99 100 88 88 89 89 88 89 90 89 81 84 84 82 Engine 2 | . 14 14 11 11 11 11 9 1 . . . . . . . . . . 7 1 . . . . . . . . . . . . . . . . . Core 3 | . . . . . . . . 7 7 7 7 6 7 6 6 6 3 . 1 9 10 11 11 8 5 5 5 . 3 5 4 4 . . . . . Reactor 3 | . . . . . . . . . . . . . . . . . 2 4 . . . . . 2 5 5 5 9 6 5 4 4 8 7 7 8 7 Treads 6 | . 7 8 2 . . . . . . . . . . . . . . . . . . . . . . 9 14 15 15 15 13 14 14 13 13 13 9 Leg 4 | . . . 17 22 22 22 26 22 . . . . . . . . . . . . . . . . . . . . . . . . . . . . 3 Hover 8 | . . . . . . . . . 23 23 22 17 15 22 26 26 22 12 25 29 28 29 29 29 29 9 . . . . . . . . . . . Device 6 | . . . 16 11 6 . 4 . 6 6 6 1 6 4 5 5 6 . 4 5 3 5 5 9 11 9 4 3 . 2 3 4 9 6 10 15 11 Storage 16 | . 16 14 11 22 26 33 27 27 16 15 15 15 15 13 13 13 13 9 4 11 11 11 11 11 11 12 15 16 21 21 19 19 21 17 17 17 17 Processor 5 | . . . . . . . . 9 7 7 7 7 7 6 6 6 6 4 4 11 11 11 11 5 5 5 9 10 10 8 4 4 4 2 4 8 9 Hackware 11 | . . . . . . . 8 9 20 23 23 23 23 26 26 26 25 31 23 17 17 17 17 17 17 17 15 15 15 15 14 13 5 6 5 4 4 Protection 5 | . 11 14 13 11 11 11 3 . . . . 5 . 1 . . . 2 . . 1 . . . . 3 5 5 5 3 9 9 8 12 11 3 4 Energy Gun 3 | . . 8 11 22 11 11 7 3 . . . . 7 6 2 . . . 4 1 4 4 . . . . . . . . . . . . . . . Ballistic Gun 5 | . 27 17 9 . . . 6 2 3 . . . . . . . . . . . . . . . . 1 6 4 10 7 8 10 10 9 1 11 9 Slashing Weapon 1 | . . . . . . . . 11 2 . . . . . 3 6 5 4 . 5 5 5 5 5 6 5 . . . . . 2 . . . . . Piercing Weapon 1 | . . . . . . . . . 3 7 7 7 7 6 6 6 6 3 . . . . 5 4 3 . . . . . . . . . 2 . . Naked Turns . | . . . . . . . . . . . . . . . . . . . . . . . . . . . . . . . . . . . . . . Heaviest Build 220 | 15 15 14 33 33 50 51 51 46 44 33 33 32 32 32 30 29 36 36 39 45 49 43 40 77 75 160 153 179 179 188 202 190 191 220 209 196 203 Greatest Support 230 | 26 26 32 40 34 34 34 51 47 33 33 33 39 39 47 41 41 47 47 70 56 83 68 68 88 88 178 178 173 178 178 178 185 185 220 225 230 215 Greatest Overweight (x) 14 | . . . 1 . 1 1 1 14 1 . . . . . . . . 1 . . . . . . . 1 . 1 1 1 1 1 1 1 . . 2 Average Overweight (x) . | . . . . . . 1 . . . . . . . . . . . . . . . . . . . . . . . . 1 . . . . . . Largest Inventory Capacity 36 | 8 8 6 12 12 18 18 18 18 18 12 12 12 12 12 12 12 12 12 14 14 14 14 14 22 18 28 28 36 36 36 36 36 36 36 36 36 36 Average Capacity 21 | 5 6 6 6 12 13 18 18 18 13 12 12 12 12 12 12 12 12 9 8 14 14 14 14 16 18 22 28 29 36 36 36 36 36 36 36 36 36 Most Carried 36 | 6 6 6 10 12 16 18 18 18 18 12 12 12 12 12 12 12 12 12 9 14 14 14 14 18 18 28 28 31 36 36 36 36 36 36 36 36 36 Average Carried 20 | 3 5 5 6 11 13 17 16 17 12 12 11 11 10 11 12 12 11 9 6 12 13 13 13 16 18 21 27 28 33 35 34 35 33 32 33 34 35 Final Capacity 36 | . . . . . . . . . . . . . . . . . . . . . 14 . . . . . . . . . . . . . . . 36 Final Carried 24 | . . . . . . . . . . . . . . . . . . . . . 14 . . . . . . . . . . . . . . . 24 Class Distribution -------------------- 43% | Hacker-Mutant 18% | Mutant 16% | Scavenger-Mutant 5% | Scavenger-Tank 4% | Wizard-Mutant Dominant Class ---------------- Mutant | -10/Materials Mutant | -10/Mines Scavenger-Mutant | -9/Materials Mutant | -9/Mines Mutant | -9/Exiles Mutant | -8/Mines Mutant | -8/Materials Scavenger-Mutant | -8/Storage Hacker-Mutant | -7/Factory Hacker-Mutant | -7/Lower Caves Hacker-Mutant | -7/Lower Caves Hacker-Mutant | -7/Data Miner Hacker-Mutant | -6/Proximity Caves Hacker-Mutant | -6/Factory Hacker-Mutant | -6/Lower Caves Hacker-Mutant | -6/Lower Caves Hacker-Mutant | -6/Zion Hacker-Mutant | -5/Proximity Caves Wizard-Mutant | -5/Factory Hacker-Mutant | -5/Waste Hacker-Mutant | -5/Factory Hacker-Mutant | -5/Upper Caves Hacker-Mutant | -5/Upper Caves Hacker-Mutant | -5/Warlord Hacker-Mutant | -4/Proximity Caves Hacker-Mutant | -4/Factory Hacker-Mutant | -4/Extension Hacker-Mutant | -4/Cetus Hacker-Mutant | -4/Archives Hacker-Mutant | -4/Hub_04(d) Hacker-Mutant | -3/Research Hacker-Mutant | -3/Testing Scavenger-Mutant | -3/Garrison Scavenger-Tank | -2/Research Scavenger-Mutant | -2/Quarantine Bothacker-Gunner | -2/Garrison Bothacker-Skirmisher | -2/Section 7 Resources | -11 -10 -10 -9 -9 -9 -8 -8 -8 -7 -7 -7 -7 -6 -6 -6 -6 -6 -5 -5 -5 -5 -5 -5 -5 -4 -4 -4 -4 -4 -4 -3 -3 -3 -2 -2 -2 -2 ----------- Run | Scr Mat Min Mat Min Exi Min Mat Sto Fac Low Low Dat Pro Fac Low Low Zio Pro Fac Was Fac Upp Upp War Pro Fac Ext Cet Arc Hub Res Tes Gar Res Qua Gar Sec Matter Collected 10161 | 258 147 117 346 137 . 50 186 439 383 30 70 . 66 99 54 36 110 30 139 120 135 40 10 . 110 254 576 615 55 107 733 108 655 1771 589 770 816 Remotely . | . . . . . . . . . . . . . . . . . . . . . . . . . . . . . . . . . . . . . . Salvage Created 15743 | 67 367 93 837 45 . 30 765 303 288 89 284 21 75 373 24 . . 23 173 . 1009 57 . . 160 393 929 99 81 231 577 255 971 2209 1328 1355 2232 Parts 758 | 4 24 8 72 2 . 3 41 25 20 8 6 5 5 17 2 . . 1 4 . 36 . . . . 17 62 4 5 7 17 15 47 103 38 59 101 Haulers Intercepted 12 | . . . 4 . . . . 1 1 . . . . . . . . . 1 . 3 . . . . 1 . . . . 1 . . . . . . Recyclers Shooed 5 | . . . . . . . 3 . . . . . . . . . . . . . . . . . . . 1 . . . . . . . . . 1 Parts Field Recycled . | . . . . . . . . . . . . . . . . . . . . . . . . . . . . . . . . . . . . . . Retrieved Matter . | . . . . . . . . . . . . . . . . . . . . . . . . . . . . . . . . . . . . . . Parts Self-Destructed 59 | . . . . . . . . . . 5 7 . 5 . 2 . . 3 . . . . . 37 . . . . . . . . . . . . . Prevented 10 | . . . . . . . . . . 3 1 . . . . . . . . . . . . 6 . . . . . . . . . . . . . Kills | -11 -10 -10 -9 -9 -9 -8 -8 -8 -7 -7 -7 -7 -6 -6 -6 -6 -6 -5 -5 -5 -5 -5 -5 -5 -4 -4 -4 -4 -4 -4 -3 -3 -3 -2 -2 -2 -2 ------- Run | Scr Mat Min Mat Min Exi Min Mat Sto Fac Low Low Dat Pro Fac Low Low Zio Pro Fac Was Fac Upp Upp War Pro Fac Ext Cet Arc Hub Res Tes Gar Res Qua Gar Sec Combat Hostiles Destroyed 231 | . 9 4 18 2 . 2 18 7 5 3 4 . 3 4 1 . . 1 2 . 11 . . . . 4 8 2 1 4 5 3 19 31 19 16 25 Melee 38 | . . . 2 . . . . 2 5 1 2 . 3 4 1 . . 1 1 . 11 . . . . . . . . . . . . 5 . . . Guns 122 | . 7 2 14 2 . 2 17 2 . . . . . . . . . . 1 . . . . . . . 3 . 1 3 3 3 14 19 1 15 13 Cannons 43 | . . . . . . . . . . . . . . . . . . . . . . . . . . 4 5 . . 1 2 . . . 18 1 12 AOE 23 | . 2 2 2 . . . 1 3 . 2 2 . . . . . . . . . . . . . . . . 2 . . . . 5 2 . . . Classes Destroyed 19 | 1 3 . 3 . . . 3 1 . . . . . . . . . . . . . . . . . 1 1 . . . . . 2 3 . . 1 Worker 6 | . . . . . . . 1 . 2 . . . . 1 . . . . . . 1 . . . . . . . . . . . . . . . 1 Builder 6 | . . . . . . . . 1 . . . . . . . . . . . . . . . . . . 3 . . . . . . . . . 2 Hauler 12 | . . . 4 . . . . 1 1 . . . . . . . . . 1 . 3 . . . . 1 . . . . 1 . . . . . . Recycler 6 | 1 1 . . . . . . . . . . . . 1 . . . . . . . . . . . . 1 . . . . . . . 1 . 1 Mechanic 1 | . . . . . . . . . . . . . . . . . . . . . . . . . . . . . . . . . . 1 . . . Operator 6 | . . . . . . . 1 2 1 . . . . . . . . . . . 1 . . . . . . . . . . . . 1 . . . Watcher 18 | . 1 . 2 . . . . 2 1 . . . . 3 . . . . 1 . 3 . . . . 1 2 . . . 1 1 . . . . . Swarmer 67 | . 3 3 3 . . 2 3 4 4 3 4 . 3 4 1 . . 1 2 . 3 . . . . . . 1 . . . . 10 10 3 . . Grunt 79 | . 6 1 9 2 . . 10 . . . . . . . . . . . . . 7 . . . . 2 2 . . 1 3 3 3 2 8 11 9 Brawler 3 | . . . 1 . . . . . . . . . . . . . . . . . . . . . . . . . . . 1 . . . 1 . . Duelist 2 | . . . . . . . . . . . . . . . . . . . . . . . . . . . . . . . . . 2 . . . . Researcher 2 | . . . . . . . . . . . . . . . . . . . . . . . . . . . . . . . . . . . . . 2 Sentry 25 | . . . 5 . . . 3 3 1 . . . . . . . . . . . 1 . . . . . 4 . 1 . 1 . 2 2 . 1 1 Demolisher 1 | . . . . . . . . . . . . . . . . . . . . . . . . . . . . . . . . . 1 . . . . Hunter 20 | . . . . . . . 2 . . . . . . . . . . . . . . . . . . . . . . 1 . . . 3 5 2 7 Programmer 17 | . . . . . . . . . . . . . . . . . . . . . . . . . . 2 . . . 2 . . 1 1 2 1 8 Behemoth 3 | . . . . . . . . . . . . . . . . . . . . . . . . . . . 2 . . . . . . . . 1 . Cetus Guard 1 | . . . . . . . . . . . . . . . . . . . . . . . . . . . . 1 . . . . . . . . . Striker 7 | . . . . . . . . . . . . . . . . . . . . . . . . . . . . . . . . . . 7 . . . Executioner 6 | . . . . . . . . . . . . . . . . . . . . . . . . . . . . . . . . . . 6 . . . Packrat 3 | . . . . . . . . . . . 2 . . . . . . . . . . 1 . . . . . . . . . . . . . . . Best Kill Streak 11 | 1 3 2 5 2 . 2 7 6 4 3 3 1 3 6 1 . . 1 1 . 11 . . . . 2 4 1 1 3 3 2 8 7 8 4 9 Combat Bots Only 8 | . 3 2 3 2 . 2 7 5 4 3 3 . 3 4 1 . . 1 1 . 5 . . . . 2 4 1 1 3 3 2 8 7 7 4 7 Max Kills in Single Turn 3 | 1 2 2 1 1 . 1 1 3 1 1 1 1 1 1 1 . . 1 1 . 1 1 . . . 1 2 1 1 1 1 1 3 2 2 1 2 Gunslinging 1 | . . . . . . . . . . . . . . . . . . . . . . . . . . . . . . . . . 1 1 . . . Exploded 3 | . 2 2 1 . . . 1 2 . 1 1 . . . . . . . . . . . . . . . . 1 . . . . 3 1 . . . Melee 1 | . . . 1 . . . . 1 1 1 1 . 1 1 1 . . 1 1 . 1 . . . . . . . . . . . . 1 . . . Uniques/NPCs Destroyed 1 | . . . . . . . . . . . . 1 . . . . . . . . . . . . . . . . . . . . . . . . . Data Miner (-7/Data Miner) Combat | -11 -10 -10 -9 -9 -9 -8 -8 -8 -7 -7 -7 -7 -6 -6 -6 -6 -6 -5 -5 -5 -5 -5 -5 -5 -4 -4 -4 -4 -4 -4 -3 -3 -3 -2 -2 -2 -2 -------- Run | Scr Mat Min Mat Min Exi Min Mat Sto Fac Low Low Dat Pro Fac Low Low Zio Pro Fac Was Fac Upp Upp War Pro Fac Ext Cet Arc Hub Res Tes Gar Res Qua Gar Sec Damage Taken 36991 | . 339 153 835 72 . 7 1642 717 182 57 263 229 60 366 30 . . 1492 715 9 1478 . . 10 . 386 2932 621 108 1181 444 186 2127 9247 3511 2873 4719 Core 3959 | . 64 19 99 . . . 280 148 45 15 . . 12 71 . . . 745 157 . 251 . . 10 . . 185 124 . 96 38 21 117 757 205 181 319 Absorbed by Shields 371 | . . . . . . . . . . . . . . . . . . . . . . . . 10 . 16 46 145 . . 13 . 75 . . 66 . Reduced by Siege Mode 1259 | . . . . . . . . . . . . . . . . . . . 55 . . . . . . 11 294 . . 14 . 11 109 181 39 288 257 Core Remaining (%) 62 | 100 . 66 . . . 75 . 22 . . . . 89 . . . . 4 . . . . . . 58 . . . . 64 . . 86 . . . . Volleys Fired 690 | 7 34 9 57 6 . . 68 12 4 2 3 . . . . . 4 . 21 . 1 . . . . 18 57 10 5 20 23 8 45 94 57 48 77 Largest 3 | 2 2 2 2 2 . . 2 2 2 1 1 . . . . . 1 . 2 . 1 . . . . 2 2 2 2 2 3 3 3 3 3 3 3 Hottest 301 | 40 40 70 130 130 . . 130 60 46 39 39 . . . . . 30 . 65 . 81 . . . . 186 155 92 70 101 214 105 113 146 301 120 273 Shots Fired 1466 | 14 67 17 113 11 . 4 139 18 5 2 3 . . . . . 4 . 34 . 1 . . . . 25 103 11 10 39 42 15 108 209 122 133 217 Gun 1117 | 14 66 16 113 11 . 4 139 16 3 . . . . . . . . . 34 . 1 . . . . 6 83 1 10 24 25 15 96 172 28 127 113 Cannon 298 | . . 1 . . . . . . . . . . . . . . . . . . . . . . . 19 20 1 . 14 17 . . 30 91 3 102 Launcher 36 | . 1 . . . . . . 2 2 2 3 . . . . . . . . . . . . . . . . 9 . 1 . . 9 7 . . . Special 15 | . . . . . . . . . . . . . . . . . 4 . . . . . . . . . . . . . . . 3 . 3 3 2 Kinetic 1052 | 14 66 9 49 . . . 79 12 3 . . . . . . . . . . . . . . . . 11 88 2 10 38 39 15 96 183 51 127 160 Thermal 344 | . . 8 64 11 . 4 53 . . . . . . . . . . . 26 . 1 . . . . 14 15 . . . 3 . . 19 68 3 55 Explosive 3 | . 1 . . . . . . 2 . . . . . . . . . . . . . . . . . . . . . . . . . . . . . Electromagnetic 52 | . . . . . . . 7 4 2 2 3 . . . . . . . 8 . . . . . . . . 9 . 1 . . 9 7 . . . Robot Hit Streak 39 | 2 9 17 26 10 . 2 13 10 3 1 1 . . . . . 3 . 12 . . . . . . 10 18 10 4 14 20 12 16 20 35 39 23 Robot Miss Streak 14 | 2 3 2 8 2 . 2 14 1 1 1 2 . . . . . 2 . 9 . 1 . . . . 1 2 3 3 3 4 2 2 2 2 1 4 Penetration Max 1 | . . . . . . . . . . . . . . . . . . . . . . . . . . . 1 1 1 . 1 1 1 1 1 1 1 Secondary Targets 26 | . . 1 1 . . . 2 . . . . . . . . . . . . . . . . . . . . . . . . 1 6 7 . 5 3 Max Gunslinging Chain 2 | . . 1 1 . . . 1 . . . . . . . . . . . . . . . . . . . . . . . . 1 2 1 . 1 1 Autonomous 16 | . . . . . . 4 12 . . . . . . . . . . . . . . . . . . . . . . . . . . . . . . Shots Hit Robots 1242 | 8 48 11 98 11 6 2 123 26 15 2 7 1 3 13 2 . 3 2 27 . 49 3 . . 3 20 72 4 4 27 33 15 82 171 91 111 149 Core Hits 652 | 3 22 7 81 9 . 2 67 18 11 4 6 1 3 9 1 . . 1 12 . 23 1 . . 2 7 36 13 3 12 15 9 40 82 42 48 62 Critical Hits 185 | . 1 . . . . . 1 . . . 1 1 . 2 . . . . . . 4 . . . . 7 12 . 2 6 12 5 17 53 9 7 45 Critical Kills 68 | . . . . . . . . . . . . . . 2 . . . . . . 1 . . . . 4 3 . 1 1 5 3 8 15 1 4 20 Critical Parts Destroyed 97 | . 1 . . . . . 1 . . . . . . . . . . . . . 3 . . . . 3 6 . . 5 6 2 9 26 8 2 25 Melee Attacks 448 | . . . 9 . 6 . . 29 40 9 33 18 20 60 7 . . 16 15 . 83 9 15 8 9 18 . . . 2 . 9 . 25 8 . . Impact . | . . . . . . . . . . . . . . . . . . . . . . . . . . . . . . . . . . . . . . Slashing 235 | . . . 9 . . . . 29 27 . . . . . 1 . . 11 12 . 83 9 14 5 7 18 . . . 2 . 8 . . . . . Piercing 204 | . . . . . . . . . 13 9 33 18 20 60 6 . . 5 . . . . 1 3 2 . . . . . . 1 . 25 8 . . Sneak Attacks 32 | . . . . . 5 . . 3 5 . 1 1 . 5 . . . . 5 . 5 1 . . . . . . . . . . . 1 . . . Combat Hostiles 3 | . . . . . . . . 1 1 . . . . . . . . . 1 . . . . . . . . . . . . . . . . . . Follow-up Attacks 9 | . . . . . . . . . . . . . . . . . . . . . 4 . . . . 1 . . . . . . . 4 . . . Damage Inflicted 35383 | 56 468 178 1285 119 . 92 1850 1255 935 110 328 107 94 690 50 . . 64 625 . 2858 207 . . 327 689 2774 989 205 633 850 481 2825 4018 3007 2777 4437 Guns 17487 | 56 351 120 988 119 . 92 1804 243 18 . . . . . . . . . 327 . . . . . . 55 2183 36 205 450 540 357 2081 2281 320 2690 2171 Cannons 6752 | . . . . . . . . . . . . . . . . . . . . . . . . . . 544 591 9 . 123 310 . . 167 2673 87 2248 Explosions 3364 | . 114 58 112 . . . 46 302 49 79 93 . . . . . . . . . . . . . . . . 944 . 60 . . 744 763 . . . Melee 7737 | . . . 185 . . . . 710 868 31 235 107 94 690 50 . . 64 295 . 2858 207 . . 327 90 . . . . . 119 . 807 . . . Ramming 43 | . 3 . . . . . . . . . . . . . . . . . 3 . . . . . . . . . . . . 5 . . 14 . 18 Kinetic 17156 | 56 351 42 354 . . . 995 143 18 . . . . . . . . . . . . . . . . 134 2267 45 205 573 731 357 2081 2448 913 2690 2753 Thermal 7373 | . . 78 634 119 . 92 733 . . . . . . . . . . . 147 . . . . . . 465 507 304 . . 119 . 342 . 2080 87 1666 Explosive 416 | . 114 . . . . . . 302 . . . . . . . . . . . . . . . . . . . . . . . . . . . . . Electromagnetic 2658 | . . 58 112 . . . 122 100 49 79 93 . . . . . . . 180 . . . . . . . . 640 . 60 . . 402 763 . . . Impact . | . . . . . . . . . . . . . . . . . . . . . . . . . . . . . . . . . . . . . . Slashing 5479 | . . . 185 . . . . 710 690 . . . . . . . . 38 295 . 2858 207 . . 327 90 . . . . . 79 . . . . . Piercing 2258 | . . . . . . . . . 178 31 235 107 94 690 50 . . 26 . . . . . . . . . . . . . 40 . 807 . . . Highest Corruption 16 | . . . 2 2 2 2 . . . . . . . 1 1 1 1 4 . . . . . . . . . . . 2 1 1 2 2 10 11 16 Average Corruption 3 | . . . 1 2 2 2 . . . . . . . 1 1 1 1 2 . . . . . . . . . . . 1 1 1 1 1 4 8 9 Corruption Purged 16 | . . . . . . . . . . . . . . . . . . . . . . . . . . . . . . . 1 . 2 2 . 11 . Effects 140 | . . . 12 6 3 6 . . . . . . . . 1 . . 2 . . . . . . . . . . . . . . 4 9 1 41 55 Message Errors 28 | . . . 1 3 2 3 . . . . . . . . 1 . . . . . . . . . . . . . . . . . 1 3 . 8 6 Matter Fused 14 | . . . . . . . . . . . . . . . . . . 1 . . . . . . . . . . . . . . . . . 7 6 Heat Flow Errors 10 | . . . 2 2 1 1 . . . . . . . . . . . . . . . . . . . . . . . . . . . 1 . 1 2 Energy Discharges 12 | . . . 2 . . . . . . . . . . . . . . . . . . . . . . . . . . . . . . . . 5 5 Data Loss (minor) 14 | . . . 2 1 . 2 . . . . . . . . . . . 1 . . . . . . . . . . . . . . . 2 1 3 2 Misfires 2 | . . . . . . . . . . . . . . . . . . . . . . . . . . . . . . . . . . . . 2 . Alerts 1 | . . . . . . . . . . . . . . . . . . . . . . . . . . . . . . . . . . . . . 1 Misdirections 2 | . . . . . . . . . . . . . . . . . . . . . . . . . . . . . . . . . . . . 1 1 Targeting Errors 50 | . . . 5 . . . . . . . . . . . . . . . . . . . . . . . . . . . . . 3 2 . 13 27 Weapon Failures 7 | . . . . . . . . . . . . . . . . . . . . . . . . . . . . . . . . . . 1 . 1 5 Overload Shots . | . . . . . . . . . . . . . . . . . . . . . . . . . . . . . . . . . . . . . . Overflow Damage 1732 | . . . . . . . . 74 199 . 52 . . 142 . . . . 106 . 516 129 . . 123 40 12 32 . . . . 36 22 128 . 121 Projectiles 301 | . . . . . . . . . . . . . . . . . . . . . . . . . . 40 12 . . . . . . . 128 . 121 Explosions 117 | . . . . . . . . 49 . . . . . . . . . . . . . . . . . . . 32 . . . . 36 . . . . Melee 1314 | . . . . . . . . 25 199 . 52 . . 142 . . . . 106 . 516 129 . . 123 . . . . . . . . 22 . . . Knockbacks 25 | . . . . . . . . . . . . . . . . . . . . . . . . . . . 1 . . 4 2 . . 1 7 . 10 Impact . | . . . . . . . . . . . . . . . . . . . . . . . . . . . . . . . . . . . . . . Kinetic 23 | . . . . . . . . . . . . . . . . . . . . . . . . . . . 1 . . 4 2 . . 1 6 . 9 Secondary 2 | . . . . . . . . . . . . . . . . . . . . . . . . . . . . . . . . . . . 1 . 1 Self-Inflicted Damage 223 | . 1 10 25 . . . 47 95 . . . . . . . . . . . . . . . . . . . . . . . . 32 13 . . . Shots 9 | . . 1 2 . . . 1 2 . . . . . . . . . . . . . . . . . . . . . . . . 2 1 . . . Rammed 10 | . 1 . . . . . . . . . . . . . . . . . 6 . . . . . . . . . . . . 1 . . 1 . 1 Targets Rammed 10 | . 1 . . . . . . . . . . . . . . . . . 6 . . . . . . . . . . . . 1 . . 1 . 1 Kicked . | . . . . . . . . . . . . . . . . . . . . . . . . . . . . . . . . . . . . . . Crushed . | . . . . . . . . . . . . . . . . . . . . . . . . . . . . . . . . . . . . . . Highest Temperature 501 | . 18 94 208 501 250 124 69 24 333 . . . . 2 . . . . 68 3 232 18 50 73 . 376 240 . 12 261 328 . . 144 162 194 199 Average Temperature 78 | . 8 33 52 283 128 66 20 10 151 . . . . 2 . . . . 33 3 92 10 16 37 . 117 101 . 3 112 139 . . 50 63 70 86 Received Heat Transfer 3789 | . 156 33 291 42 . . 540 198 . . 9 30 . 48 . . . 72 45 . 441 . . 4 . 93 249 44 9 63 93 42 45 108 180 441 513 Effects 9 | . . . . 3 . . . . 1 . . . . . . . . . . . . . . . . 3 . . . . 2 . . . . . . Shutdowns 1 | . . . . . . . . . 1 . . . . . . . . . . . . . . . . . . . . . . . . . . . . Energy Bleed 1 | . . . . . . . . . . . . . . . . . . . . . . . . . . . . . . . 1 . . . . . . Interference 5 | . . . . 3 . . . . . . . . . . . . . . . . . . . . . 2 . . . . . . . . . . . Short Circuit 1 | . . . . . . . . . . . . . . . . . . . . . . . . . . . . . . . 1 . . . . . . Damage (minor) 1 | . . . . . . . . . . . . . . . . . . . . . . . . . . 1 . . . . . . . . . . . Siege Activations 27 | . . . . . . . . . . . . . . . . . . . 1 . . . . . . 1 5 1 . 1 . 2 2 6 1 4 3 Total Turns 697 | . . . . . . . . . . . . . . . . . . . 16 . . . . . . 20 170 6 . 37 . 20 61 133 35 117 82 Longest Duration 72 | . . . . . . . . . . . . . . . . . . . 16 . . . . . . 20 72 6 . 37 . 16 42 42 35 43 37 Robots Corrupted 5 | . . . . . . . . . . . . . . . . . . . . . . . . . . . . . . . . . . 5 . . . Combat Hostiles 5 | . . . . . . . . . . . . . . . . . . . . . . . . . . . . . . . . . . 5 . . . Parts Fried 18 | . . . . . . . . . . . . . . . . . . . 3 . . . . . . . . 1 . . . . 1 13 . . . Impact Corruptions . | . . . . . . . . . . . . . . . . . . . . . . . . . . . . . . . . . . . . . . Robots Melted 1 | . . . . . . . . . . . . . . . . . . . 1 . . . . . . . . . . . . . . . . . . Combat Hostiles . | . . . . . . . . . . . . . . . . . . . . . . . . . . . . . . . . . . . . . . Parts Melted 7 | . . 1 . . . 1 1 . . . . . . . . . . . 1 . . . . . . . . . . . . . . . 2 . 1 Heat Transferred 7388 | . . 222 800 150 . 111 993 . . . . . . . . . . . 629 . . . . . . 407 444 250 . . 111 . 200 . 1739 74 1258 Parts Sabotaged . | . . . . . . . . . . . . . . . . . . . . . . . . . . . . . . . . . . . . . . Parts Stolen 1 | . . . . . . . . . . . 1 . . . . . . . . . . . . . . . . . . . . . . . . . . Parts Stripped . | . . . . . . . . . . . . . . . . . . . . . . . . . . . . . . . . . . . . . . Power Chain Reactions 5 | . . . . . . . 1 . . . . . . . . . . . . . . . . . . . . 2 . . . . 2 . . . . Missiles Intercepted . | . . . . . . . . . . . . . . . . . . . . . . . . . . . . . . . . . . . . . . Alert | -11 -10 -10 -9 -9 -9 -8 -8 -8 -7 -7 -7 -7 -6 -6 -6 -6 -6 -5 -5 -5 -5 -5 -5 -5 -4 -4 -4 -4 -4 -4 -3 -3 -3 -2 -2 -2 -2 ------- Run | Scr Mat Min Mat Min Exi Min Mat Sto Fac Low Low Dat Pro Fac Low Low Zio Pro Fac Was Fac Upp Upp War Pro Fac Ext Cet Arc Hub Res Tes Gar Res Qua Gar Sec Peak Influence 1186 | 5 308 214 363 141 . 127 355 224 169 . . . . 256 . . . . 455 264 1186 . . . . 76 701 461 309 458 457 355 1043 656 618 698 790 Average Influence 273 | 1 139 92 232 79 . 85 111 96 55 . . . . 134 . . . . 106 230 384 . . . . 29 104 286 260 248 310 177 792 555 386 578 466 Maximum Alert Level 4 | . 1 1 1 . . . 1 1 . . . . . 1 . . . . 2 1 4 . . . . . 3 2 1 2 2 1 3 2 2 2 3 Low Security (%) 49 | . . . . . . . . . . . . . . . . . . . . . . . . . . . . . . . . . . . . . . Level 1 24 | . . . . . . . . . . . . . . . . . . . . . . . . . . . . . . . . . . . . . . Level 2 22 | . . . . . . . . . . . . . . . . . . . . . . . . . . . . . . . . . . . . . . Level 3 4 | . . . . . . . . . . . . . . . . . . . . . . . . . . . . . . . . . . . . . . Level 4 . | . . . . . . . . . . . . . . . . . . . . . . . . . . . . . . . . . . . . . . Level 5 . | . . . . . . . . . . . . . . . . . . . . . . . . . . . . . . . . . . . . . . High Security . | . . . . . . . . . . . . . . . . . . . . . . . . . . . . . . . . . . . . . . Max Security . | . . . . . . . . . . . . . . . . . . . . . . . . . . . . . . . . . . . . . . Squads Dispatched 73 | . 2 1 2 1 . . 3 2 4 . 1 . . 3 . . . . 4 . 10 . . . . 3 2 1 . 4 7 4 . 1 10 . 8 Investigation 21 | . 2 1 2 1 . . 1 1 1 . . . . 2 . . . . . . 1 . . . . . 1 1 . 1 4 1 . . . . 1 Extermination 9 | . . . . . . . . . 1 . . . . . . . . . 1 . 1 . . . . 1 . . . 1 . . . . 2 . 2 Reinforcement 27 | . . . . . . . 2 1 1 . . . . 1 . . . . . . 3 . . . . 2 1 . . 2 3 2 . 1 5 . 3 Assault 5 | . . . . . . . . . 1 . 1 . . . . . . . . . 1 . . . . . . . . . . 1 . . . . 1 Garrison 11 | . . . . . . . . . . . . . . . . . . . 3 . 4 . . . . . . . . . . . . . 3 . 1 Intercept . | . . . . . . . . . . . . . . . . . . . . . . . . . . . . . . . . . . . . . . Construction Impeded 3 | . . . . . . . 1 . . . . . . . . . . . . . . . . . . . . . . 1 . . . . 1 . . Haulers Reinforced 4 | . . . . . . . . . . . . . . . . . . . . . 1 . . . . 1 . . . . 1 1 . . . . . Stealth | -11 -10 -10 -9 -9 -9 -8 -8 -8 -7 -7 -7 -7 -6 -6 -6 -6 -6 -5 -5 -5 -5 -5 -5 -5 -4 -4 -4 -4 -4 -4 -3 -3 -3 -2 -2 -2 -2 --------- Run | Scr Mat Min Mat Min Exi Min Mat Sto Fac Low Low Dat Pro Fac Low Low Zio Pro Fac Was Fac Upp Upp War Pro Fac Ext Cet Arc Hub Res Tes Gar Res Qua Gar Sec Distress Signals 39 | . 1 . 1 . . . 6 1 2 . . . . 1 . . . . 2 . 4 . . . . 1 2 2 . 1 4 3 . 3 3 . 2 Communications Jammed . | . . . . . . . . . . . . . . . . . . . . . . . . . . . . . . . . . . . . . . Distress Signals . | . . . . . . . . . . . . . . . . . . . . . . . . . . . . . . . . . . . . . . Times Spotted 534 | . 12 10 32 2 . 4 32 14 22 4 18 4 3 24 4 . . 27 14 4 31 1 . 2 . 11 24 19 3 13 18 6 27 48 38 25 38 Peak Tracking Total 14 | . 5 3 4 2 . 4 7 6 9 3 9 4 3 7 3 . . 14 4 2 7 2 . 2 . 2 5 5 2 4 5 3 9 8 9 7 11 Tactical Retreats 70 | . 1 1 5 . . . 5 2 6 . 4 . . 4 1 . . 4 3 . 5 . . . . 2 . . . 1 1 2 5 6 4 8 . Traps | -11 -10 -10 -9 -9 -9 -8 -8 -8 -7 -7 -7 -7 -6 -6 -6 -6 -6 -5 -5 -5 -5 -5 -5 -5 -4 -4 -4 -4 -4 -4 -3 -3 -3 -2 -2 -2 -2 ------- Run | Scr Mat Min Mat Min Exi Min Mat Sto Fac Low Low Dat Pro Fac Low Low Zio Pro Fac Was Fac Upp Upp War Pro Fac Ext Cet Arc Hub Res Tes Gar Res Qua Gar Sec Traps Triggered 25 | . . . . . . . . 1 2 . . . . . . . . . 3 . . . . . . . 2 . . . 4 . 9 . . 2 2 Indirectly 1 | . . . . . . . . . . . . . . . . . . . . . . . . . . . . . . . . . 1 . . . . Trap Hack Attempts . | . . . . . . . . . . . . . . . . . . . . . . . . . . . . . . . . . . . . . . Triggered . | . . . . . . . . . . . . . . . . . . . . . . . . . . . . . . . . . . . . . . Disarmed . | . . . . . . . . . . . . . . . . . . . . . . . . . . . . . . . . . . . . . . Reprogrammed 19 | . . . 6 . . . . . 3 . . . . 6 . . . . 4 . . . . . . . . . . . . . . . . . . Reused 7 | . . 1 3 . . . . . 1 . . . . 2 . . . . . . . . . . . . . . . . . . . . . . . Traps Extracted . | . . . . . . . . . . . . . . . . . . . . . . . . . . . . . . . . . . . . . . Installed 4 | . . 1 3 . . . . . . . . . . . . . . . . . . . . . . . . . . . . . . . . . . Triggered 20 | . . 1 3 . . . . . 1 . . . . 2 . . . 1 . . . . . 6 6 . . . . . . . . . . . . Machines | -11 -10 -10 -9 -9 -9 -8 -8 -8 -7 -7 -7 -7 -6 -6 -6 -6 -6 -5 -5 -5 -5 -5 -5 -5 -4 -4 -4 -4 -4 -4 -3 -3 -3 -2 -2 -2 -2 ---------- Run | Scr Mat Min Mat Min Exi Min Mat Sto Fac Low Low Dat Pro Fac Low Low Zio Pro Fac Was Fac Upp Upp War Pro Fac Ext Cet Arc Hub Res Tes Gar Res Qua Gar Sec Machines Disabled 36 | . 1 . 1 . . . 1 4 . . . 1 . . 1 . . . . . 2 . . . . . 4 1 4 2 1 . 3 3 5 1 1 Max in Single Turn 1 | . 1 . 1 . . . 1 1 . . . 1 . . 1 . . . . . . . . . . . . . 1 1 1 . 1 1 1 1 1 Garrison Access 5 | . . . . . . . . . 1 . . . . 1 . . . . . . 1 . . . . 1 . . . . . . . 1 . . . Garrison Relay 4 | . . . . . . . . . . . . . . . . . . . . . . . . . . . . . . . . . 3 . . 1 . Network Hub 2 | . . . . . . . . . . . . . . . . . . . . . . . . . . . . . . 2 . . . . . . . Energy Cycler 1 | . . . . . . . . . . . . . . . . . . . . . . . . . . . 1 . . . . . . . . . . Machines Sabotaged 1 | . . . . . . . . . . . . . . . . . . . . . . . . . . . . . . 1 . . . . . . . Garrisons Compromised . | . . . . . . . . . . . . . . . . . . . . . . . . . . . . . . . . . . . . . . Overloaded Fab Kills . | . . . . . . . . . . . . . . . . . . . . . . . . . . . . . . . . . . . . . . Fab Network Shutdowns 3 | . . . . . . . . . . . . . . . . . . . 1 . 1 . . . . . . . . . . 1 . . . . . Hacking | -11 -10 -10 -9 -9 -9 -8 -8 -8 -7 -7 -7 -7 -6 -6 -6 -6 -6 -5 -5 -5 -5 -5 -5 -5 -4 -4 -4 -4 -4 -4 -3 -3 -3 -2 -2 -2 -2 --------- Run | Scr Mat Min Mat Min Exi Min Mat Sto Fac Low Low Dat Pro Fac Low Low Zio Pro Fac Was Fac Upp Upp War Pro Fac Ext Cet Arc Hub Res Tes Gar Res Qua Gar Sec Machines Accessed 140 | . 6 1 11 2 2 1 4 2 19 . . 4 . 17 . 1 1 . 8 . 7 . 1 3 . 8 15 4 . 4 7 5 . 2 4 . 1 Terminals 79 | . 4 1 9 2 . 1 3 2 9 . . . . 9 . 1 . . 4 . 1 . . . . 4 12 4 . 3 3 3 . . 3 . 1 Fabricators 12 | . . . . . . . . . 2 . . . . 3 . . . . 1 . 2 . . . . 2 . . . . 1 1 . . . . . Repair Stations 7 | . . . . . . . . . . . . . . 2 . . . . 1 . 1 . . . . 1 1 . . . . . . 1 . . . Recycling Units 13 | . 2 . 1 . . . 1 . 3 . . . . 2 . . . . 1 . 1 . . . . . 2 . . . . . . . . . . Scanalyzers 7 | . . . 1 . . . . . 2 . . . . . . . . . . . 1 . . . . . . . . . 2 . . 1 . . . Garrison Access 11 | . . . . . . . . . 3 . . . . 1 . . . . 1 . 1 . . . . 1 . . . 1 1 1 . . 1 . . Total Hacks 541 | . 17 3 38 9 2 3 9 10 52 . . 25 . 55 . 3 6 . 38 . 29 . 1 8 . 37 63 22 . 15 39 43 . 5 8 . 1 Successful 365 | . 11 1 25 2 2 1 4 5 41 . . 25 . 36 . 3 6 . 31 . 18 . 1 8 . 34 40 9 . 6 24 23 . 5 4 . . Failed 175 | . 6 2 13 7 . 2 5 5 11 . . . . 19 . . . . 7 . 11 . . . . 3 23 12 . 9 15 20 . . 4 . 1 Catastrophic 19 | . 1 1 4 1 . . 1 1 1 . . . . . . . . . 1 . . . . . . . 2 1 . 1 1 1 . . 1 . 1 Database Lockouts 1 | . . . . . . . . . . . . . . . . . . . . . . . . . . . . 1 . . . . . . . . . Manual 242 | . 6 3 15 8 1 1 7 4 19 . . . . 16 . 3 . . 25 . 13 . . 1 . 16 36 22 . 10 15 17 . . 3 . 1 Terminals 320 | . 12 3 26 9 . 3 8 10 25 . . . . 31 . 3 . . 24 . 4 . . . . 16 54 22 . 11 17 34 . . 7 . 1 Fabricators 63 | . . . . . . . . . 10 . . . . 13 . . . . 6 . 8 . . . . 16 . . . . 6 4 . . . . . Repair Stations 26 | . . . . . . . . . . . . . . 6 . . . . 4 . 6 . . . . 4 4 . . . . . . 2 . . . Recycling Units 26 | . 5 . 2 . . . 1 . 6 . . . . 4 . . . . 2 . 1 . . . . . 5 . . . . . . . . . . Scanalyzers 39 | . . . 10 . . . . . 6 . . . . . . . . . . . 5 . . . . . . . . . 15 . . 3 . . . Garrison Access 25 | . . . . . . . . . 5 . . . . 1 . . . . 2 . 5 . . . . 1 . . . 4 1 5 . . 1 . . Terminal Hacks 168 | . 6 1 11 2 2 1 2 3 11 . . 25 . 13 . 3 6 . 12 . 2 . 1 8 . 6 24 5 . 1 7 14 . . 2 . . Record 13 | . . . 1 . 1 . . . . . . 11 . . . . . . . . . . . . . . . . . . . . . . . . . Part Schematic 29 | . . 1 . . . . 1 1 1 . . 6 . 4 . . 6 . 1 . 1 . . . . 2 3 1 . . 1 . . . . . . Robot Schematic 7 | . . . . 1 . . . . . . . 5 . . . . . . . . . . . . . 1 . . . . . . . . . . . Robot Analysis 10 | . 2 . 1 . . . . . 1 . . . . 1 . 1 . . . . . . . . . . 1 . . . 1 2 . . . . . Prototype ID Bank 19 | . 2 . . . . . . . 1 . . 3 . 2 . 2 . . . . . . . 6 . 1 2 . . . . . . . . . . Open Door 11 | . . . . . . . . 1 . . . . . . . . . . . . . . 1 2 . . 6 1 . . . . . . . . . Level Access Points 2 | . . . . . . . . . . . . . . 1 . . . . . . . . . . . . . . . 1 . . . . . . . Branch Access Points 6 | . . . 1 . . . . . 1 . . . . 1 . . . . 1 . 1 . . . . . . . . . 1 . . . . . . Emergency Access Points 1 | . . . . . . . . . . . . . . . . . . . 1 . . . . . . . . . . . . . . . . . . Machine Index 2 | . . . . . . . . . . . . . . 1 . . . . . . . . . . . . 1 . . . . . . . . . . Terminal Index 4 | . . . 1 . . . . . 1 . . . . . . . . . 1 . . . . . . . . . . . . 1 . . . . . Fabricator Index 3 | . . . . . . . . . 1 . . . . . . . . . 1 . . . . . . . . . . . 1 . . . . . . Repair Station Index 1 | . . . . . . . . . . . . . . . . . . . . . . . . . . . . . . . . 1 . . . . . Recycling Unit Index 1 | . 1 . . . . . . . . . . . . . . . . . . . . . . . . . . . . . . . . . . . . Scanalyzer Index 3 | . . . 1 . . . . . . . . . . . . . . . 1 . . . . . . . . . . . 1 . . . . . . Garrison Index 1 | . . . . . . . . . 1 . . . . . . . . . . . . . . . . . . . . . . . . . . . . Alert Level 2 | . . . . . . . . . . . . . . . . . . . . . . . . . . . 1 . . . 1 . . . . . . Unreport Threat 16 | . . . 1 . . . . . 1 . . . . . . . . . . . . . . . . . 5 3 . . 1 4 . . 1 . . Locate Traps 11 | . 1 . 1 . . . 1 1 1 . . . . 1 . . . . . . . . . . . . 3 . . . . 1 . . 1 . . Reprogram Traps 4 | . . . 1 . . . . . 1 . . . . 1 . . . . 1 . . . . . . . . . . . . . . . . . . Hauler Manifests 5 | . . . 2 . . . . . . . . . . . . . . . 2 . . . . . . 1 . . . . . . . . . . . Registered Components 3 | . . . 1 . . . . . . . . . . . . . . . 1 . . . . . . . . . . . . 1 . . . . . Registered Prototypes 4 | . . . . . . . . . 1 . . . . 1 . . . . . . . . . . . 1 . . . . . 1 . . . . . Zone Layout 8 | . . . . 1 . 1 . . . . . . . . . . . . 2 . . . . . . . 2 . . . . 2 . . . . . EX-Prototype ID Bank 1 | . . . . . 1 . . . . . . . . . . . . . . . . . . . . . . . . . . . . . . . . Protovariant Controls 1 | . . . . . . . . . . . . . . . . . . . . . . . . . . . . . . . . 1 . . . . . Fabricator Hacks 36 | . . . . . . . . . 6 . . . . 8 . . . . 3 . 3 . . . . 11 . . . . 3 2 . . . . . Load Schematic 14 | . . . . . . . . . 3 . . . . 3 . . . . 1 . 1 . . . . 4 . . . . 1 1 . . . . . Build 22 | . . . . . . . . . 3 . . . . 5 . . . . 2 . 2 . . . . 7 . . . . 2 1 . . . . . Repair Station Hacks 21 | . . . . . . . . . . . . . . 6 . . . . 3 . 3 . . . . 4 3 . . . . . . 2 . . . Scan Component 10 | . . . . . . . . . . . . . . 3 . . . . . . 2 . . . . 2 2 . . . . . . 1 . . . Repair 8 | . . . . . . . . . . . . . . 3 . . . . . . 1 . . . . 2 1 . . . . . . 1 . . . Refit 3 | . . . . . . . . . . . . . . . . . . . 3 . . . . . . . . . . . . . . . . . . Recycling Unit Hacks 13 | . 2 . 1 . . . 1 . 4 . . . . 2 . . . . 1 . 1 . . . . . 1 . . . . . . . . . . Report Inventory 1 | . . . . . . . . . 1 . . . . . . . . . . . . . . . . . . . . . . . . . . . . Retrieve Components 12 | . 2 . 1 . . . 1 . 3 . . . . 2 . . . . 1 . 1 . . . . . 1 . . . . . . . . . . Scanalyzer 30 | . . . 9 . . . . . 6 . . . . . . . . . . . 3 . . . . . . . . . 9 . . 3 . . . Insert Component 14 | . . . 4 . . . . . 3 . . . . . . . . . . . 1 . . . . . . . . . 5 . . 1 . . . Analyze 16 | . . . 5 . . . . . 3 . . . . . . . . . . . 2 . . . . . . . . . 4 . . 2 . . . Garrison Access Hacks 5 | . . . . . . . . . . . . . . 1 . . . . . . . . . . . 1 . . . 1 . 1 . . 1 . . Unlock Access 3 | . . . . . . . . . . . . . . . . . . . . . . . . . . . . . . 1 . 1 . . 1 . . Seal Access 2 | . . . . . . . . . . . . . . 1 . . . . . . . . . . . 1 . . . . . . . . . . . Unauthorized Hacks 228 | . 7 . 10 4 . . 3 5 31 . . . . 14 . . . . 25 . 16 . . . . 24 30 8 . 14 12 21 . . 3 . 1 Terminals 55 | . 1 . 3 . . . 1 2 4 . . . . 3 . . . . 6 . 1 . . . . 7 10 4 . 4 3 5 . . 1 . . Track 13 | . . . 1 . . . . . 1 . . . . . . . . . 2 . . . . . . 2 3 1 . . 1 2 . . . . . Assimilate 5 | . . . . . . . . . 1 . . . . 1 . . . . . . 1 . . . . 1 . . . . . 1 . . . . . Botnet 23 | . . . 2 . . . . 1 2 . . . . 2 . . . . 3 . . . . . . 3 3 2 . . 2 2 . . 1 . . Detonate 3 | . . . . . . . . . . . . . . . . . . . . . . . . . . . . . . 3 . . . . . . . Disrupt 8 | . 1 . . . . . 1 1 . . . . . . . . . . . . . . . . . 1 3 1 . . . . . . . . . Operators 2 | . . . . . . . . . . . . . . . . . . . 1 . . . . . . . 1 . . . . . . . . . . Sabotage 1 | . . . . . . . . . . . . . . . . . . . . . . . . . . . . . . 1 . . . . . . . Fabricators 19 | . . . . . . . . . 3 . . . . 3 . . . . 3 . 3 . . . . 5 . . . . 1 1 . . . . . Report 3 | . . . . . . . . . 1 . . . . . . . . . 1 . . . . . . 1 . . . . . . . . . . . Prioritize 6 | . . . . . . . . . 1 . . . . 1 . . . . 1 . 2 . . . . 1 . . . . . . . . . . . Siphon 7 | . . . . . . . . . 1 . . . . 1 . . . . 1 . . . . . . 2 . . . . 1 1 . . . . . Haulers 1 | . . . . . . . . . . . . . . . . . . . . . . . . . . 1 . . . . . . . . . . . Download 2 | . . . . . . . . . . . . . . 1 . . . . . . 1 . . . . . . . . . . . . . . . . Repair Stations . | . . . . . . . . . . . . . . . . . . . . . . . . . . . . . . . . . . . . . . Recycling Units 8 | . 2 . 1 . . . . . 2 . . . . . . . . . 1 . . . . . . . 2 . . . . . . . . . . Monitor 1 | . . . . . . . . . 1 . . . . . . . . . . . . . . . . . . . . . . . . . . . . Mask 4 | . . . . . . . . . 1 . . . . . . . . . 1 . . . . . . . 2 . . . . . . . . . . Tunnel 3 | . 2 . 1 . . . . . . . . . . . . . . . . . . . . . . . . . . . . . . . . . . Scanalyzers . | . . . . . . . . . . . . . . . . . . . . . . . . . . . . . . . . . . . . . . Garrison Access 10 | . . . . . . . . . 5 . . . . . . . . . 2 . 2 . . . . . . . . . 1 . . . . . . Reprogram 8 | . . . . . . . . . 3 . . . . . . . . . 2 . 2 . . . . . . . . . 1 . . . . . . Watchers 2 | . . . . . . . . . 2 . . . . . . . . . . . . . . . . . . . . . . . . . . . . Data Cores Recovered 1 | . . . . . . . . 1 . . . . . . . . . . . . . . . . . . . . . . . . . . . . . Used . | . . . . . . . . . . . . . . . . . . . . . . . . . . . . . . . . . . . . . . Hacking Detections 92 | . 4 1 8 2 . 1 4 2 14 . . . . 13 . 1 . . 5 . 5 . . . . 6 8 2 . 3 5 4 . . 3 . 1 Full Trace Events 9 | . . 1 1 1 . . 1 . 1 . . . . 1 . . . . . . . . . . . . 1 . . . 1 1 . . . . . Feedback Events 4 | . . . . . . . . . . . . . . 1 . . . . . . . . . . . . . . . . 1 2 . . . . . Corruption 2 | . . . . . . . . . . . . . . 1 . . . . . . . . . . . . . . . . 1 . . . . . . Hackware Fried 2 | . . . . . . . . . . . . . . . . . . . . . . . . . . . . . . . . 2 . . . . . Feedback Blocked . | . . . . . . . . . . . . . . . . . . . . . . . . . . . . . . . . . . . . . . Robot Schematics Acquired 7 | . . . . 1 . . . . . . . 5 . . . . . . . . . . . . . 1 . . . . . . . . . . . Robots Built . | . . . . . . . . . . . . . . . . . . . . . . . . . . . . . . . . . . . . . . Matter . | . . . . . . . . . . . . . . . . . . . . . . . . . . . . . . . . . . . . . . Time . | . . . . . . . . . . . . . . . . . . . . . . . . . . . . . . . . . . . . . . Total Robot Build Rating . | . . . . . . . . . . . . . . . . . . . . . . . . . . . . . . . . . . . . . . Part Schematics Acquired 40 | . . 1 3 . . . 1 1 4 . . 6 . 5 . . 6 . 1 . 3 . . . . 2 3 . . . 3 . . 1 . . . Parts Built 25 | . . . . . . . . . 3 . . . . 3 . . . . 2 . 2 . . . . 10 . . . . 4 1 . . . . . Matter 3810 | . . . . . . . . . 415 . . . . 732 . . . . 476 . 468 . . . . 1143 . . . . 384 192 . . . . . Time 1080 | . . . . . . . . . 70 . . . . 269 . . . . 84 . 154 . . . . 333 . . . . 128 42 . . . . . Total Part Build Rating 163 | . . . . . . . . . 11 . . . . 17 . . . . 12 . 14 . . . . 69 . . . . 32 8 . . . . . Parts Repaired 8 | . . . . . . . . . . . . . . 3 . . . . . . 1 . . . . 2 1 . . . . . . 1 . . . Time 219 | . . . . . . . . . . . . . . 57 . . . . . . 47 . . . . 41 37 . . . . . . 37 . . . Parts Recycled . | . . . . . . . . . . . . . . . . . . . . . . . . . . . . . . . . . . . . . . Recycled Matter . | . . . . . . . . . . . . . . . . . . . . . . . . . . . . . . . . . . . . . . Retrieved Matter . | . . . . . . . . . . . . . . . . . . . . . . . . . . . . . . . . . . . . . . Retrieved Components 61 | . 15 . 9 . . . 10 . 3 . . . . 3 . . . . 10 . 10 . . . . . 1 . . . . . . . . . . Parts Scanalyzed 10 | . . . 3 . . . . . 3 . . . . . . . . . . . 1 . . . . . . . . . 2 . . 1 . . . Part Schematics Acquired 10 | . . . 3 . . . . . 3 . . . . . . . . . . . 1 . . . . . . . . . 2 . . 1 . . . Parts Damaged 2 | . . . . . . . . . . . . . . . . . . . . . . . . . . . . . . . 1 . . 1 . . . Bothacking | -11 -10 -10 -9 -9 -9 -8 -8 -8 -7 -7 -7 -7 -6 -6 -6 -6 -6 -5 -5 -5 -5 -5 -5 -5 -4 -4 -4 -4 -4 -4 -3 -3 -3 -2 -2 -2 -2 ------------ Run | Scr Mat Min Mat Min Exi Min Mat Sto Fac Low Low Dat Pro Fac Low Low Zio Pro Fac Was Fac Upp Upp War Pro Fac Ext Cet Arc Hub Res Tes Gar Res Qua Gar Sec Used RIF Installer 2 | . . . . . . . . . . . . . . . . . . . . . . . . . . . . . . . . . 1 . . 1 . Patrol Navigation 1 | . . . . . . . . . . . . . . . . . . . . . . . . . . . . . . . . . . . . 1 . Robots Hacked 17 | . . . . . 5 . . . . . . . . . . . 2 . 3 . . . . . . . . . . . . . 1 . 2 3 1 Non-combat 6 | . . . . . 2 . . . . . . . . . . . 1 . 2 . . . . . . . . . . . . . . . . . 1 Combat 9 | . . . . . 3 . . . . . . . . . . . 1 . . . . . . . . . . . . . . . . . 2 3 . Robot Hacks Applied 17 | . . . . . 5 . . . . . . . . . . . 3 . 2 . . . . . . . . . . . . . . . 3 3 1 parse_system 8 | . . . . . 5 . . . . . . . . . . . 3 . . . . . . . . . . . . . . . . . . . . no_distress 1 | . . . . . . . . . . . . . . . . . . . 1 . . . . . . . . . . . . . . . . . . find_chute 1 | . . . . . . . . . . . . . . . . . . . 1 . . . . . . . . . . . . . . . . . . map_route 1 | . . . . . . . . . . . . . . . . . . . . . . . . . . . . . . . . . . . . . 1 disable_scanner 2 | . . . . . . . . . . . . . . . . . . . . . . . . . . . . . . . . . . . 2 . . locate_prototypes 1 | . . . . . . . . . . . . . . . . . . . . . . . . . . . . . . . . . . . 1 . . overwrite_iff 1 | . . . . . . . . . . . . . . . . . . . . . . . . . . . . . . . . . . . . 1 . formatsys_high 2 | . . . . . . . . . . . . . . . . . . . . . . . . . . . . . . . . . . . . 2 . Manual 2 | . . . . . . . . . . . . . . . . . . . 1 . . . . . . . . . . . . . 1 . . . . Relay Couplers Released 21 | . . . . . . . . . 2 . . . . . . . . . . . 1 . . . . . . . . . . . 13 2 . 3 . Machine Destruction 21 | . . . . . . . . . 2 . . . . . . . . . . . 1 . . . . . . . . . . . 13 2 . 3 . Attached 3 | . . . . . . . . . . . . . . . . . . . . . . . . . . . . . . . . . . . 1 1 1 Robots Rewired 15 | . . . . . . . . . . . . . . . . . . . . . . . . 4 . . 11 . . . . . . . . . . Allies Hacked 4 | . . . . . . . . . . . . . . . . . . . . . 2 . . 1 . 1 . . . . . . . . . . . Hacks Repelled . | . . . . . . . . . . . . . . . . . . . . . . . . . . . . . . . . . . . . . . Allies | -11 -10 -10 -9 -9 -9 -8 -8 -8 -7 -7 -7 -7 -6 -6 -6 -6 -6 -5 -5 -5 -5 -5 -5 -5 -4 -4 -4 -4 -4 -4 -3 -3 -3 -2 -2 -2 -2 -------- Run | Scr Mat Min Mat Min Exi Min Mat Sto Fac Low Low Dat Pro Fac Low Low Zio Pro Fac Was Fac Upp Upp War Pro Fac Ext Cet Arc Hub Res Tes Gar Res Qua Gar Sec Total Allies 72 | . . 2 . 3 . . . . 2 . . . . 1 . . . . 3 18 7 . . 4 . 1 19 5 . . 2 1 1 . . 3 . Largest Group 18 | . . 2 1 3 2 2 1 . 2 1 1 . . 1 . . . . 2 18 6 . . 4 1 2 12 13 7 5 2 1 1 . . 2 . Highest-Rated Group 909 | . . 46 31 40 24 24 16 . 53 26 26 . . 10 . . . . 81 650 158 . . 204 60 70 623 909 535 362 112 44 115 . . 116 . Highest-Rated Ally 156 | . . 31 31 16 16 16 16 . 27 26 26 . . 10 . . . . 81 50 54 . . 60 60 60 156 156 144 94 56 44 115 . . 58 . Total Orders 14 | . . . . . . . 1 2 4 . . . . . . . . . . . . . 1 . . 3 . . . . . 3 . . . . . STAY 1 | . . . . . . . . . . . . . . . . . . . . . . . . . . 1 . . . . . . . . . . . GOTO 5 | . . . . . . . 1 . 2 . . . . . . . . . . . . . . . . 1 . . . . . 1 . . . . . ROAM 1 | . . . . . . . . . . . . . . . . . . . . . . . . . . . . . . . . 1 . . . . . FOLLOW 4 | . . . . . . . . . 2 . . . . . . . . . . . . . . . . 1 . . . . . 1 . . . . . EXPLORE 3 | . . . . . . . . 2 . . . . . . . . . . . . . . 1 . . . . . . . . . . . . . . Ally Attacks 606 | . . 18 13 14 . 6 4 . . . . . . . . . . . 34 109 75 . . 3 . . 119 103 23 48 9 . 5 . . 23 . Total Damage 16331 | . . 295 129 134 . 89 44 . . . . . . . . . . . 533 3520 1574 . . 58 . . 3630 2573 664 1713 187 . 322 . . 866 . Kills 100 | . . 6 4 4 . 3 . . . . . . . . . . . . 5 8 11 . . 1 . . 25 18 3 5 1 . 4 . . 2 . Allies Corrupted . | . . . . . . . . . . . . . . . . . . . . . . . . . . . . . . . . . . . . . . Allies Melted . | . . . . . . . . . . . . . . . . . . . . . . . . . . . . . . . . . . . . . . Intel | -11 -10 -10 -9 -9 -9 -8 -8 -8 -7 -7 -7 -7 -6 -6 -6 -6 -6 -5 -5 -5 -5 -5 -5 -5 -4 -4 -4 -4 -4 -4 -3 -3 -3 -2 -2 -2 -2 ------- Run | Scr Mat Min Mat Min Exi Min Mat Sto Fac Low Low Dat Pro Fac Low Low Zio Pro Fac Was Fac Upp Upp War Pro Fac Ext Cet Arc Hub Res Tes Gar Res Qua Gar Sec Robot Analysis Total 10 | . 2 . 1 . . . . . 1 . . . . 1 . 1 . . . . . . . . . . 1 . . . 1 2 . . . . . Derelict Logs Recovered 12 | . . 1 . 2 . . . . . 1 3 . 1 . . 1 . 1 . . . . 1 . 1 . . . . . . . . . . . . Drone Launches 5 | . . . . . . . . 2 . . . . . . . . . . . . . . 3 . . . . . . . . . . . . . . Drone Recoveries . | . . . . . . . . . . . . . . . . . . . . . . . . . . . . . . . . . . . . . . Exploration | -11 -10 -10 -9 -9 -9 -8 -8 -8 -7 -7 -7 -7 -6 -6 -6 -6 -6 -5 -5 -5 -5 -5 -5 -5 -4 -4 -4 -4 -4 -4 -3 -3 -3 -2 -2 -2 -2 ------------- Run | Scr Mat Min Mat Min Exi Min Mat Sto Fac Low Low Dat Pro Fac Low Low Zio Pro Fac Was Fac Upp Upp War Pro Fac Ext Cet Arc Hub Res Tes Gar Res Qua Gar Sec Turns Passed 23290 | 83 469 467 1321 619 561 404 918 856 1221 323 416 145 370 825 150 92 548 165 784 242 1084 205 150 430 140 1048 1495 402 117 361 770 404 1056 1743 1033 1093 780 Spaces Moved 17311 | 55 217 389 713 401 384 213 383 390 1408 609 657 164 336 1006 291 224 1139 246 812 435 935 275 201 632 197 679 727 199 60 156 382 178 509 773 394 297 245 Core 171 | 1 . . . . . . . 1 . . . . . . . . . 94 75 . . . . . . . . . . . . . . . . . . Treads 4295 | . . . 3 . . . . 31 . . . . . . . . . . 5 . . . . . . 342 727 199 60 156 382 178 509 773 394 297 239 Legs 2315 | . . . 579 401 384 213 383 349 . . . . . . . . . . . . . . . . . . . . . . . . . . . . 6 Wheels 791 | 54 217 389 131 . . . . . . . . . . . . . . . . . . . . . . . . . . . . . . . . . . Hover 9739 | . . . . . . . . 9 1408 609 657 164 336 1006 291 224 1139 152 732 435 935 275 201 632 197 337 . . . . . . . . . . . Flight . | . . . . . . . . . . . . . . . . . . . . . . . . . . . . . . . . . . . . . . Fastest Speed 40 | 50 90 100 100 130 130 160 123 102 42 42 42 42 51 40 40 40 42 48 50 50 45 58 58 50 50 50 145 150 150 150 165 145 145 145 150 150 148 Average Speed 90 | 88 94 100 125 130 140 160 129 130 50 42 42 47 51 43 40 40 45 50 57 50 54 64 58 53 50 100 153 157 155 152 166 164 168 163 155 151 163 Slowest Speed 750 | 90 100 100 160 130 160 160 160 750 102 42 42 51 51 51 40 42 48 110 160 50 65 65 58 58 50 165 155 170 170 170 170 170 172 178 158 158 185 Overloaded Moves . | . . . . . . . . . . . . . . . . . . . . . . . . . . . . . . . . . . . . . . Propulsion Burnouts . | . . . . . . . . . . . . . . . . . . . . . . . . . . . . . . . . . . . . . . Robots Hopped . | . . . . . . . . . . . . . . . . . . . . . . . . . . . . . . . . . . . . . . Cave-ins Triggered . | . . . . . . . . . . . . . . . . . . . . . . . . . . . . . . . . . . . . . . Time Travels 1 | . . . . . . . . . . . . 1 . . . . . . . . . . . . . . . . . . . . . . . . . Exploration Rate (%) 50 | 4 45 74 61 83 78 55 31 58 37 79 76 81 46 28 49 45 83 58 26 96 29 51 43 85 35 13 83 77 74 23 17 18 70 20 52 35 8 Regions Visited 37 Branch Regions 24 Pre-discovered Areas 11 | . 2 1 1 . 1 . . . . 1 . 1 . . . . 3 . . . . . . . 1 . . . . . . . . . . . . Known Exits Taken 27 | . . . 1 . . . 1 1 1 1 1 1 1 1 1 1 1 1 . . 1 1 1 1 1 1 1 1 1 1 1 1 . 1 1 . . Unknown Exits Taken 6 | 1 1 1 . 1 1 1 . . . . . . . . . . . . . . . . . . . . . . . . . . . . . . . Scrap Searched 25 | . . . . 1 . 1 . . . 2 4 . 1 . 1 1 3 3 . . . 4 2 . 2 . . . . . . . . . . . . Spaces Dug 211 | . . . 2 . . . . 9 23 7 21 2 13 30 2 . . 7 9 . 20 6 14 5 4 10 . . . 2 . 6 . . 19 . . Terrain Destroyed 356 | . 8 . 2 . . . 6 28 23 7 21 2 13 30 2 . . 7 9 . 20 6 14 5 4 16 6 19 . 8 . 6 31 5 27 2 29 Melee 199 | . . . 2 . . . . 9 23 7 21 2 13 30 2 . . 7 9 . 20 6 14 5 4 10 . . . 2 . 6 . . 7 . . Projectile 79 | . . . . . . . 3 . . . . . . . . . . . . . . . . . . 6 6 . . 6 . . 2 5 20 2 29 AOE 78 | . 8 . . . . . 3 19 . . . . . . . . . . . . . . . . . . . 19 . . . . 29 . . . . Actions | -11 -10 -10 -9 -9 -9 -8 -8 -8 -7 -7 -7 -7 -6 -6 -6 -6 -6 -5 -5 -5 -5 -5 -5 -5 -4 -4 -4 -4 -4 -4 -3 -3 -3 -2 -2 -2 -2 --------- Run | Scr Mat Min Mat Min Exi Min Mat Sto Fac Low Low Dat Pro Fac Low Low Zio Pro Fac Was Fac Upp Upp War Pro Fac Ext Cet Arc Hub Res Tes Gar Res Qua Gar Sec Total 23095 | 74 428 451 1029 487 404 276 679 670 1857 659 740 205 503 1300 312 225 1170 269 1072 460 1386 290 220 718 228 1007 999 278 75 235 477 263 620 1040 699 840 450 Wait 3665 | . 162 29 194 77 1 59 193 196 350 39 36 11 145 208 10 1 2 1 165 11 340 . 1 31 22 249 142 30 2 49 37 42 18 74 200 452 86 Move 17276 | 54 216 388 712 400 383 212 382 389 1407 608 656 163 335 1005 290 223 1138 245 812 434 934 274 200 631 196 678 726 198 59 155 381 178 508 772 393 296 245 Hop . | . . . . . . . . . . . . . . . . . . . . . . . . . . . . . . . . . . . . . . Pick Up 228 | 6 3 7 13 1 5 3 9 14 12 . 1 4 2 9 . . 6 . 7 7 10 1 1 5 . 16 8 12 5 1 8 5 7 19 6 13 2 Fast Attach 123 | 7 1 1 11 . 1 . 2 4 2 . 2 1 . 2 1 . 3 . 16 2 4 1 1 6 1 6 3 3 1 . . 3 3 18 6 4 7 Attach 104 | . 1 1 1 . . . 13 2 3 . 1 4 . 3 . . 1 2 6 . 2 . . 3 . 2 4 2 1 1 3 2 3 16 10 5 12 Detach 48 | . . 1 2 . . . 1 . 2 . . 2 . . . . 2 . 11 2 . . . 4 . 3 2 1 1 . . 3 2 4 2 1 2 Swap 205 | . 5 7 8 2 3 1 4 13 6 1 6 . 1 6 4 1 6 3 2 . 9 2 . 1 1 10 13 9 . 6 11 6 13 11 10 11 13 Drop 220 | . 5 7 19 1 5 1 7 12 18 . 2 2 . 7 1 . 8 3 11 4 8 3 2 6 1 11 8 13 1 1 7 7 7 13 7 9 3 Fire 690 | 7 34 9 57 6 . . 68 12 4 2 3 . . . . . 4 . 21 . 1 . . . . 18 57 10 5 20 23 8 45 94 57 48 77 Melee 424 | . . . 9 . 6 . . 27 40 9 33 18 20 60 6 . . 15 15 . 78 9 14 7 7 14 . . . 2 . 9 . 19 7 . . Ram 1 | . 1 . . . . . . . . . . . . . . . . . . . . . . . . . . . . . . . . . . . . Kick . | . . . . . . . . . . . . . . . . . . . . . . . . . . . . . . . . . . . . . . Crush 8 | . . . . . . . . . . . . . . . . . . . 6 . . . . . . . . . . . . . . . 1 . 1 Escape Stasis 40 | . . . . . . . . . 13 . . . . . . . . . . . . . . . . . 3 . . . 7 . 14 . . 1 2 Rewire 57 | . . . . . . . . . . . . . . . . . . . . . . . . 24 . . 33 . . . . . . . . . . Trap 4 | . . 1 3 . . . . . . . . . . . . . . . . . . . . . . . . . . . . . . . . . . Miscellaneous 2 | . . . . . . . . 1 . . . . . . . . . . . . . . 1 . . . . . . . . . . . . . . Route ------- -11/Scrapyard -10/Materials (discovered 2 exits: *Mat / *Min) -10/Mines -9/Materials (discovered 4 exits: *Mat x2 / *Min x2) -9/Mines (discovered 3 exits: *Mat x2 / *Exi) -9/Exiles -8/Mines -8/Materials -8/Storage -7/Factory (discovered 2 exits: *Low x2) -7/Lower Caves -7/Lower Caves (discovered 2 exits: *Fac / *Dat) -7/Data Miner -6/Proximity Caves -6/Factory (discovered 6 exits: *Fac x4 / *Low x2) -6/Lower Caves -6/Lower Caves -6/Zion -5/Proximity Caves -5/Factory (discovered 3 exits: *Fac / Upp x2) -5/Waste -5/Factory (discovered 3 exits: *Fac / *Upp x2) -5/Upper Caves -5/Upper Caves -5/Warlord -4/Proximity Caves -4/Factory -4/Extension (discovered 2 exits: *Res / *Cet) -4/Cetus (discovered 2 exits: *Res / *Arc) -4/Archives (discovered 2 exits: *Hub x2) -4/Hub_04(d) (discovered 5 exits: *Res x4 / Gar) -3/Research (discovered 3 exits: *Arm / *Tes x2) -3/Testing -3/Garrison (discovered 2 exits: *Res x2) -2/Research -2/Quarantine (discovered 2 exits: [*Acc] / Gar) -2/Garrison -2/Section 7 (discovered 1 exit: [Acc]) History --------- Turn | Location | Event 21 | -11/Scrapyard | Discovered new exit (range 16) 84 | -11/Scrapyard | Entered Materials 267 | -10/Materials | Discovered new exit (range 15) 302 | -10/Materials | Build established: Mutant 538 | -10/Materials | Discovered new exit (range 10) 553 | -10/Materials | Entered Mines 925 | -10/Mines | Found a hidden stash of uninstalled traps 949 | -10/Mines | Discovered new exit (range 8) 1020 | -10/Mines | Entered Materials 1020 | -9/Materials | Accompanied by 1 ally 1020 | -9/Materials | Evolved 2 slots: Utility x2 1025 | -9/Materials | Led the pair of lost Derelicts to an unsafe place 1300 | -9/Materials | Identified exit to Mines 1323 | -9/Materials | Discovered new exit (range 16) 1453 | -9/Materials | Build established: Scavenger-Mutant 1720 | -9/Materials | Discovered new exit (range 16) 1895 | -9/Materials | Build established: Mutant 2295 | -9/Materials | Build established: Scavenger-Mutant 2341 | -9/Materials | Entered Mines 2346 | -9/Mines | Met a Derelict bent on vengeance 2459 | -9/Mines | Received a Rocket Launcher from a helpful Derelict 2481 | -9/Mines | Discovered new exit (range 8) 2484 | -9/Mines | Learned Materials emergency access door positions 2501 | -9/Mines | Discovered new exit (range 10) 2685 | -9/Mines | Build established: Mutant 2719 | -9/Mines | Assisted by bots powering up and referring to "LRC-V3" 2830 | -9/Mines | Learned Materials emergency access door positions 2859 | -9/Mines | Deemed a non-threat by the Exiles lab entrance 2860 | -9/Mines | Discovered new exit (range 5) 2960 | -9/Mines | Entered Exiles 2960 | -9/Exiles | Accompanied by 2 allies 2993 | -9/Exiles | Met 8R-AWN 3017 | -9/Exiles | Met EX-HEX 3098 | -9/Exiles | Met EX-DEC 3126 | -9/Exiles | Visited The Gauntlet 3211 | -9/Exiles | Learned location of Zion (-6) 3236 | -9/Exiles | Met EX-BIN 3256 | -9/Exiles | Aligned with FarCom system 3257 | -9/Exiles | Given EX-Vault access code 3289 | -9/Exiles | Opened EX-Vault 3300 | -9/Exiles | Found AWS/Thermal 3303 | -9/Exiles | Found Chronowheel 3313 | -9/Exiles | Found AWS/Gauss 3363 | -9/Exiles | Warned to stay clear of 0b10 Research branches 3500 | -9/Exiles | Discovered new exit (range 14) 3521 | -9/Exiles | Stole three prototypes: AWS/Thermal, Chronowheel, AWS/Gauss 3521 | -9/Exiles | Entered Mines 3521 | -8/Mines | Accompanied by 2 allies 3885 | -8/Mines | Discovered new exit (range 13) 3925 | -8/Mines | Entered Materials 3925 | -8/Materials | Accompanied by 1 ally 3925 | -8/Materials | Evolved 2 slots: Propulsion x1, Utility x1 4570 | -8/Materials | Lost 3 parts (1n2w) 4574 | -8/Materials | Destroyed 7 combat bots 4748 | -8/Materials | Discovered new exit (range 3) 4813 | -8/Materials | Core integrity fell below 50% 4837 | -8/Materials | Lost 4 parts (1n1u2w) 4842 | -8/Materials | Identified exit to Storage 4843 | -8/Materials | Entered Storage 5233 | -8/Storage | Build established: Scavenger-Mutant 5592 | -8/Storage | Lost 5 parts (4n1w) 5695 | -8/Storage | Discovered new exit (range 5) 5698 | -8/Storage | Identified exit to Factory 5699 | -8/Storage | Entered Factory 5699 | -7/Factory | Evolved 2 slots: Utility x2 5701 | -7/Factory | FarCom data flow suspended 5862 | -7/Factory | Build established: Mutant 6218 | -7/Factory | Build established: Hacker-Mutant 6309 | -7/Factory | Identified exit to Lower Caves 6477 | -7/Factory | Fabricated Imp. Proton Missile Launcher (x1) 6499 | -7/Factory | Fabricated Adv. Sensor Array (x1) 6530 | -7/Factory | Fabricated Aerolev Unit (x1) 6920 | -7/Factory | Entered Lower Caves 6920 | -7/Lower Caves | Accompanied by 1 ally 6947 | -7/Lower Caves | Encountered a Warlord checkpoint 7169 | -7/Lower Caves | Learned location of Extension (-4) 7214 | -7/Lower Caves | Discovered new exit (range 9) 7239 | -7/Lower Caves | Identified exit to Lower Caves 7240 | -7/Lower Caves | Spotted TT-O44(f) 7243 | -7/Lower Caves | Encountered a Master Thief 7243 | -7/Lower Caves | Entered another Lower Caves area 7243 | -7/Lower Caves | Accompanied by 1 ally 7286 | -7/Lower Caves | Discovered new exit (range 10) 7308 | -7/Lower Caves | Spotted B-75 Beast 7373 | -7/Lower Caves | Learned Factory stockpile data 7489 | -7/Lower Caves | Learned location of 1 exit from Factory 7528 | -7/Lower Caves | Spotted CQ-AOT(f) 7529 | -7/Lower Caves | Encountered a Master Thief 7530 | -7/Lower Caves | AWS/Gauss stolen by Master Thief 7558 | -7/Lower Caves | Learned Factory terminal intel 7639 | -7/Lower Caves | Attracted the attention of an 0b10 outpost 7657 | -7/Lower Caves | Discovered new exit (range 5) 7659 | -7/Lower Caves | Identified exit to Data Miner 7659 | -7/Lower Caves | Entered Data Miner 7659 | -7/Data Miner | Discovered new exit (range 6) 7667 | -7/Data Miner | Met Data Miner 7676 | -7/Data Miner | Learned location of Section 7 (-2) 7676 | -7/Data Miner | Acquired the access code to Warlord's prototype stash 7683 | -7/Data Miner | Received God Mode back door access code from Data Miner 7688 | -7/Data Miner | Activated Chronowheel 7688 | -7/Data Miner | Spacetime reconverged on an earlier point 7690 | -7/Data Miner | Destroyed Data Miner 7697 | -7/Data Miner | Found Prototype Hackware 7698 | -7/Data Miner | Found Prototype Hackware 7700 | -7/Data Miner | Found Prototype Hackware 7712 | -7/Data Miner | Data Conduit disabled 7801 | -7/Data Miner | Identified exit to Proximity Caves 7804 | -7/Data Miner | Entered Proximity Caves 7826 | -6/Proximity Caves | Lost 3 parts (1p2w) 8030 | -6/Proximity Caves | Discovered new exit (range 13) 8042 | -6/Proximity Caves | Identified exit to Factory 8075 | -6/Proximity Caves | Received a Behemoth hack from an annoying Tinkerer 8174 | -6/Proximity Caves | Entered Factory 8174 | -6/Factory | Evolved 2 slots: Propulsion x1, Utility x1 8175 | -6/Factory | Identified exit to Factory 8177 | -6/Factory | Loaded intel: 20 terminal locations 8214 | -6/Factory | Discovered exit to Factory (range 12) 8297 | -6/Factory | Identified exit to Lower Caves 8385 | -6/Factory | Repaired Med. Storage Unit 8557 | -6/Factory | Fabricated Adv. Transmission Jammer? 8631 | -6/Factory | Repaired Gravmag Array 8714 | -6/Factory | Fabricated Exp. Signal Interpreter? 8812 | -6/Factory | Fabricated Exp. Sensor Array? 8992 | -6/Factory | Repaired Imp. Light Armor Plating 8999 | -6/Factory | Entered Lower Caves 9073 | -6/Lower Caves | Attacked by a delusional Derelict stockpiling parts 9077 | -6/Lower Caves | Attracted the attention of an 0b10 checkpoint 9134 | -6/Lower Caves | Discovered new exit (range 14) 9146 | -6/Lower Caves | Identified exit to Lower Caves 9149 | -6/Lower Caves | Entered another Lower Caves area 9177 | -6/Lower Caves | Encountered a Warlord checkpoint 9179 | -6/Lower Caves | Learned Factory emergency access door positions 9196 | -6/Lower Caves | Discovered new exit (range 14) 9241 | -6/Lower Caves | Identified exit to Zion 9241 | -6/Lower Caves | Entered Zion 9258 | -6/Zion | Discovered new exit (range 15) 9275 | -6/Zion | System corruption cleaned by Quarantine Array 9368 | -6/Zion | Learned location of Testing (-3) 9431 | -6/Zion | Learned Factory emergency access door positions 9680 | -6/Zion | Found Prototype Device 9786 | -6/Zion | Identified exit to Proximity Caves 9789 | -6/Zion | Entered Proximity Caves 9797 | -5/Proximity Caves | Learned 12 Factory zone layouts 9903 | -5/Proximity Caves | Identified System Mapper 9904 | -5/Proximity Caves | Identified Deep Network Scanner 9905 | -5/Proximity Caves | Core integrity fell below 50% 9906 | -5/Proximity Caves | Identified Ghost Barrier 9920 | -5/Proximity Caves | Core integrity fell below 20% 9926 | -5/Proximity Caves | Attracted the attention of an 0b10 checkpoint 9941 | -5/Proximity Caves | Lost 7 parts (3n2u2w) 9948 | -5/Proximity Caves | Discovered exit to Factory (range 12) 9954 | -5/Proximity Caves | Entered Factory 9954 | -5/Factory | Evolved 2 slots: Power x1, Propulsion x1 10005 | -5/Factory | Garrison activated, responded to threat 10041 | -5/Factory | Lost 3 parts (2u1w) 10097 | -5/Factory | Identified exit to Upper Caves 10112 | -5/Factory | Discovered new exit (range 10) 10224 | -5/Factory | Build established: Wizard-Mutant 10493 | -5/Factory | Spotted B-75 Beast 10494 | -5/Factory | Befriended a Behemoth using the annoying Tinkerer's hack 10613 | -5/Factory | Fabricated Plasma Sword (x1) 10645 | -5/Factory | Local fabrication network quarantined 10658 | -5/Factory | Fabricated Plasma Sword? 10738 | -5/Factory | Manually triggered Chute Trap 10738 | -5/Factory | Sucked down chute 10738 | -5/Factory | Entered Waste 10743 | -5/Waste | Spotted C-40 Crusher 10753 | -5/Waste | Spotted C-40 Crusher 10763 | -5/Waste | Spotted C-40 Crusher 10770 | -5/Waste | Warlord forces began an assault 10784 | -5/Waste | Spotted C-40 Crusher 10787 | -5/Waste | Spotted C-40 Crusher 10790 | -5/Waste | Allies destroyed C-40 Crusher 10794 | -5/Waste | Allies destroyed C-40 Crusher 10799 | -5/Waste | Discovered new exit (range 12) 10808 | -5/Waste | Spotted C-40 Crusher 10811 | -5/Waste | Allies destroyed C-40 Crusher 10811 | -5/Waste | Allies destroyed C-40 Crusher 10928 | -5/Waste | Identified exit to Factory 10980 | -5/Waste | Entered Factory 10980 | -5/Factory | Accompanied by 4 allies 11231 | -5/Factory | Garrison activated, responded to threat 11282 | -5/Factory | Build established: Hacker-Mutant 11595 | -5/Factory | Repaired Imp. Heavy Siege Treads? 11682 | -5/Factory | Lost 5 parts (1p3n1u) 11821 | -5/Factory | Garrison activated, responded to threat 11843 | -5/Factory | Discovered new exit (range 13) 11887 | -5/Factory | Fabricated Enh. Nova Cannon? 11964 | -5/Factory | Fabricated Imp. Proton Missile Launcher (x1) 11992 | -5/Factory | Local fabrication network quarantined 12064 | -5/Factory | Entered Upper Caves 12237 | -5/Upper Caves | Discovered new exit (range 7) 12267 | -5/Upper Caves | Spotted DL-JFY(f) 12268 | -5/Upper Caves | Encountered a Master Thief 12269 | -5/Upper Caves | Identified exit to Upper Caves 12269 | -5/Upper Caves | Entered another Upper Caves area 12402 | -5/Upper Caves | Discovered new exit (range 3) 12402 | -5/Upper Caves | Identified exit to Warlord 12408 | -5/Upper Caves | Learned Factory terminal intel 12419 | -5/Upper Caves | Entered Warlord 12483 | -5/Warlord | Visited the Vortex Lab 12487 | -5/Warlord | Found Prototype Energy Gun 12487 | -5/Warlord | Identified Vortex Rail 12489 | -5/Warlord | Warlord's base attacked by MAIN.C 12565 | -5/Warlord | Met Warlord 12570 | -5/Warlord | Opened Warlord's prototype stash 12583 | -5/Warlord | Found Prototype Processor 12583 | -5/Warlord | Identified Exp. Armor Integrity Analyzer 12588 | -5/Warlord | Found System Purifier 12593 | -5/Warlord | Found Prototype Reactor 12596 | -5/Warlord | Found System Mapper 12821 | -5/Warlord | Opened side exit 12839 | -5/Warlord | Warlord forces counterattacked 12839 | -5/Warlord | Discovered new exit (range 10) 12843 | -5/Warlord | Identified exit to Proximity Caves 12849 | -5/Warlord | Entered Proximity Caves 12849 | -4/Proximity Caves | Accompanied by 1 ally 12936 | -4/Proximity Caves | Discovered new exit (range 10) 12940 | -4/Proximity Caves | Identified exit to Factory 12951 | -4/Proximity Caves | Learned location of Quarantine (-2) 12989 | -4/Proximity Caves | Entered Factory 12989 | -4/Factory | Accompanied by 1 ally 12989 | -4/Factory | Evolved 2 slots: Utility x2 12990 | -4/Factory | Identified exit to Extension 12991 | -4/Factory | Loaded intel: 22 terminal locations 13091 | -4/Factory | Fabricated Adv. Core Analyzer? 13113 | -4/Factory | Repaired Lyr. Heavy Armor Plating 13128 | -4/Factory | Repaired Lrg. Storage Unit 13225 | -4/Factory | Fabricated Biometal Heavy Treads? 13296 | -4/Factory | Fabricated Hyp. Mass Driver? 13302 | -4/Factory | Build established: Wizard-Mutant 13329 | -4/Factory | Fabricated Biometal Heavy Treads? 13525 | -4/Factory | Fabricated Hcp. Storage Unit? 13588 | -4/Factory | Fabricated Hcp. Storage Unit (x1) 13665 | -4/Factory | Fabricated Enh. Nova Cannon (x1) 13679 | -4/Factory | Build established: Hacker-Mutant 14037 | -4/Factory | Entered Extension 14218 | -4/Extension | Destroyed B-86 Titan 14250 | -4/Extension | Spotted B-86 Titan 14316 | -4/Extension | Destroyed B-86 Titan 14825 | -4/Extension | Rescued a captive Derelict 14826 | -4/Extension | Rescued a captive Derelict 14890 | -4/Extension | Rescued a captive Derelict 15178 | -4/Extension | Rescued a captive Derelict 15205 | -4/Extension | Rescued A7 15222 | -4/Extension | Rescued a captive Derelict 15231 | -4/Extension | Rescued a captive Derelict 15300 | -4/Extension | Repaired Biometal Heavy Treads 15333 | -4/Extension | Energy Cycler disabled 15334 | -4/Extension | Rescued a captive Derelict 15336 | -4/Extension | Rescued a captive Derelict 15509 | -4/Extension | Discovered new exit (range 10) 15511 | -4/Extension | Discovered new exit (range 6) 15521 | -4/Extension | Identified exit to Cetus 15532 | -4/Extension | Entered Cetus 15532 | -4/Cetus | Accompanied by 12 allies 15537 | -4/Cetus | Acquired a Cetus Manufacturing Module code from A7 15551 | -4/Cetus | Spotted Cetus Guard 15551 | -4/Cetus | Spotted Cetus Guard 15552 | -4/Cetus | Spotted Cetus Guard 15555 | -4/Cetus | Allies destroyed Cetus Guard 15555 | -4/Cetus | Spotted Cetus Guard 15557 | -4/Cetus | Destroyed Cetus Guard 15561 | -4/Cetus | Allies destroyed Cetus Guard 15564 | -4/Cetus | Allies destroyed Cetus Guard 15635 | -4/Cetus | Started Cetus Manufacturing Module 15645 | -4/Cetus | Escorted A7 to Cetus Mainframe 15660 | -4/Cetus | Manufactured an Enhanced Grunt 15683 | -4/Cetus | Central database locked down 15685 | -4/Cetus | Manufactured an Enhanced Grunt 15710 | -4/Cetus | Manufactured an Enhanced Grunt 15735 | -4/Cetus | Manufactured an Enhanced Grunt 15751 | -4/Cetus | Discovered new exit (range 15) 15760 | -4/Cetus | Manufactured an Enhanced Grunt 15782 | -4/Cetus | Spotted Cetus Guard 15782 | -4/Cetus | Spotted Cetus Guard 15786 | -4/Cetus | Spotted Cetus Guard 15786 | -4/Cetus | Spotted Cetus Guard 15790 | -4/Cetus | Allies destroyed Cetus Guard 15800 | -4/Cetus | Allies destroyed Cetus Guard 15801 | -4/Cetus | Allies destroyed Cetus Guard 15803 | -4/Cetus | Allies destroyed Cetus Guard 15807 | -4/Cetus | Discovered new exit (range 15) 15838 | -4/Cetus | Met Revision 17 15916 | -4/Cetus | Identified exit to Archives 15934 | -4/Cetus | Entered Archives 15934 | -4/Archives | Accompanied by 7 allies 15939 | -4/Archives | Received a hacking code to weaken MAIN.C 15991 | -4/Archives | Discovered new exit (range 16) 16012 | -4/Archives | Discovered new exit (range 16) 16043 | -4/Archives | Identified exit to Hub_04(d) 16051 | -4/Archives | Entered Hub_04(d) 16051 | -4/Hub_04(d) | Accompanied by 5 allies 16092 | -4/Hub_04(d) | Identified exit to Garrison 16114 | -4/Hub_04(d) | Identified exit to Research 16387 | -4/Hub_04(d) | Network Hub disabled 16395 | -4/Hub_04(d) | Network Hub disabled 16412 | -4/Hub_04(d) | Entered Research 16412 | -3/Research | Evolved 2 slots: Utility x1, Weapon x1 16470 | -3/Research | Identified exit to Armory 16470 | -3/Research | Identified exit to Testing 16612 | -3/Research | Revision forces began assault on 0b10 16641 | -3/Research | Met up with Revision 17++ 16812 | -3/Research | Fabricated Hyp. Railgun? 16907 | -3/Research | Fabricated Hyp. Railgun (x2) 16992 | -3/Research | Identified Vortex Chain Reactor 17112 | -3/Research | Research terminal network offline 17182 | -3/Research | Entered Testing 17203 | -3/Testing | Build established: Hacker-Tank 17245 | -3/Testing | Fabricated Gamma Bomb Array? 17424 | -3/Testing | Protovariant out of control (PG-KWOPDPSR7I) 17424 | -3/Testing | Unleashed a protovariant (PG-KWOPDPSR7I) 17570 | -3/Testing | Identified exit to Garrison 17570 | -3/Testing | Ghost Barrier fried by hacking feedback 17570 | -3/Testing | System Mapper fried by hacking feedback 17586 | -3/Testing | Local fabrication network quarantined 17586 | -3/Testing | Entered Garrison 17634 | -3/Garrison | Spotted B-86 Titan 17640 | -3/Garrison | Befriended a Behemoth using the annoying Tinkerer's hack 17641 | -3/Garrison | Triggered checkpoint 17649 | -3/Garrison | Triggered checkpoint 17704 | -3/Garrison | Destroyed 8 combat bots 17718 | -3/Garrison | Triggered checkpoint 17797 | -3/Garrison | Lost 3 parts (3u) 17901 | -3/Garrison | Discovered new exit (range 14) 18074 | -3/Garrison | Discovered new exit (range 10) 18100 | -3/Garrison | Installed Relay Interface Framework 18146 | -3/Garrison | Triggered checkpoint 18177 | -3/Garrison | Garrison Relay disabled 18330 | -3/Garrison | Triggered checkpoint 18353 | -3/Garrison | Garrison Relay disabled 18462 | -3/Garrison | Build established: Scavenger-Mutant 18540 | -3/Garrison | Triggered checkpoint 18577 | -3/Garrison | Garrison Relay disabled 18642 | -3/Garrison | Entered Research 18642 | -2/Research | Warlord forces began assault on 0b10 18642 | -2/Research | Evolved 2 slots: Propulsion x1, Utility x1 18742 | -2/Research | Repaired Biometal Heavy Treads 18752 | -2/Research | Research machine network offline 18901 | -2/Research | Found Prototype Processor 18940 | -2/Research | Build established: Scavenger-Tank 18949 | -2/Research | Met up with Warlord 19236 | -2/Research | Spotted Executioner 19236 | -2/Research | Spotted Executioner 19243 | -2/Research | Spotted Executioner 19245 | -2/Research | Spotted Striker 19250 | -2/Research | Borebot progress halted 19253 | -2/Research | Borebot progress halted 19257 | -2/Research | Destroyed Executioner 19257 | -2/Research | Borebot progress halted 19258 | -2/Research | Destroyed Executioner 19262 | -2/Research | Destroyed Striker 19268 | -2/Research | Destroyed Executioner 19270 | -2/Research | Spotted Striker 19273 | -2/Research | Identified Exp. Core Analyzer 19287 | -2/Research | Borebot progress halted 19289 | -2/Research | Destroyed 7 combat bots 19297 | -2/Research | Destroyed Striker 19299 | -2/Research | Spotted Striker 19301 | -2/Research | Spotted Striker 19310 | -2/Research | Lost 6 parts (4p2u) 19312 | -2/Research | Destroyed Striker 19325 | -2/Research | Destroyed Striker 19389 | -2/Research | Spotted Executioner 19417 | -2/Research | Destroyed Executioner 19433 | -2/Research | Lost 12 parts (2p3n5u2w) 19498 | -2/Research | Spotted Striker 19503 | -2/Research | Destroyed Striker 19543 | -2/Research | Lost 5 parts (1n1u3w) 19893 | -2/Research | Warlord destroyed during the assault 19920 | -2/Research | Build established: Scavenger-Mutant 20004 | -2/Research | Spotted Striker 20154 | -2/Research | Spotted Striker 20157 | -2/Research | Spotted Striker 20162 | -2/Research | Destroyed Striker 20199 | -2/Research | Destroyed Striker 20251 | -2/Research | Spotted Executioner 20252 | -2/Research | Spotted Executioner 20262 | -2/Research | Destroyed Executioner 20267 | -2/Research | Core integrity fell below 50% 20270 | -2/Research | Destroyed Executioner 20380 | -2/Research | Discovered new exit (range 5) 20383 | -2/Research | Identified exit to Quarantine 20385 | -2/Research | Entered Quarantine 20779 | -2/Quarantine | Discovered new exit (range 5) 21067 | -2/Quarantine | Destroyed 7 combat bots 21174 | -2/Quarantine | Lost 3 parts (1n2w) 21305 | -2/Quarantine | Found Sigix Broadsword 21385 | -2/Quarantine | Identified exit to Garrison 21418 | -2/Quarantine | System corruption reached 10% 21418 | -2/Quarantine | Entered Garrison 21438 | -2/Garrison | Triggered checkpoint 21449 | -2/Garrison | Lost 4 parts (3u1w) 21498 | -2/Garrison | Garrison Relay disabled 21576 | -2/Garrison | Spotted B-90 Cyclops 21591 | -2/Garrison | Destroyed B-90 Cyclops 21632 | -2/Garrison | Triggered checkpoint 21644 | -2/Garrison | Triggered checkpoint 21820 | -2/Garrison | Discovered new exit (range 9) 21833 | -2/Garrison | Identified exit to Section 7 21844 | -2/Garrison | Expanded RIF knowledge: Patrol Navigation 22142 | -2/Garrison | Build established: Bothacker-Gunner 22511 | -2/Garrison | Entered Section 7 22584 | -2/Section 7 | Found Prototype Device 22597 | -2/Section 7 | Identified Exp. Focal Shield 22828 | -2/Section 7 | Core integrity fell below 20% 23163 | -2/Section 7 | Scanned by Researcher 23217 | -2/Section 7 | Discovered new exit (range 21) 23228 | -2/Section 7 | Lost 4 parts (1n1u2w) 23237 | -2/Section 7 | Garrison activated, responded to threat 23261 | -2/Section 7 | First assault squad dispatched 23291 | -2/Section 7 | Destroyed by G-73 Enforcer with Heavy Laser Last Messages --------------- 23282_ KE Penetrator destroyed. 23283_ Acquired 14 matter. 23285_ Held in stasis. 23285_ C-65 Expert is analyzing... 23286_ System corrupted: Hyp. Railgun targeting data glitched. 23286_ HV Slug penetrates G-73 Enforcer. 23286_ G-73 Enforcer suffers critical hit. 23286_ G-73 Enforcer destroyed. 23287_ System corrupted: Energy discharge (-112). 23287_ K-01 Serf collects debris. 23289_ Held in stasis. 23290_ HV Slug penetrates C-65 Expert. 23290_ C-65 Expert suffers critical hit. 23290_ C-65 Expert destroyed. 23290_ HV Slug penetrates Wall. 23290_ System corrupted: Hyp. Railgun targeting data glitched. 23290_ HV Slug penetrates Wall. 23290_ System corrupted: Hyp. Mass Driver targeting data glitched. 23290_ HV Slug penetrates Wall. 23290_ K-01 Serf collects debris. Map ----- +----------------------------------------------------+ | ?????????????????????????????????????????????????? | | ?????????????????????????????????????????????????? | | ?????????????????????????????????????????????????? | | ?????????????????????????????????????????????????? | | ?????????????????????????????????????????????????? | | ?????????????????????????????????????????????????? | | ?????????????????????????????????????????????????? | | ?????????????????????????????????????????????????? | | ??????#??????????????????????????????????????????? | | ??? ##########?????????????????????????????????? | | ??????????????????????????????????? | | "?" ###?????????????????????????#?#?????? | | " " "" ###?????????????????????????# #?????? | | """ "" ! #?????????????????????????# #?????? | | "T #??????????#??????????????# # | | """ "" ###?????????? ??????????????# # | | " " "" #???????????? #?????????????# # | | """ !#???????????? ##????????????# # | | #???????????# #???##???????# # | | ############################# # | | *=o|*!%!%*=% + | | #########+###############=%*%=%[=[!=k # | | #?# #????##???#=|!%gg%!!u # !! | | #?# """ ###########*[!ig=! # !! | | #?# """ # #!%[%########## ######+ | | " #?# """ # %% !#@*=*#????????# # | | "" #?# """ # " !#%=[=#????????# # | | """#?# """ # """! !+=[%%#????????# # """ ? | | ####?#| """ + """ |=#|=!%#??####### # """ " | | ?????# "?? # """==!#!%= #?? ?# # """ " | | ?????# = # =[%!#%! #? """ ?# + | | ?????########## *[[# g # """ # # ""T | | ????????##############+##g g # """ # # ""? | | ????????# = #?## ! # # ####### | | ????????# #??# + """ # #??? | | ######### """ """[#??#! ! # """ # < #??? | | # """ """=####[ ! # """ # #??? | | # """ """ + *=* #? # #??? | | + """ """[####+###+###############+#####?? | | # """ """=#!=!!*! ### #?? | | ######### #!""%"" """"" # + ??? | | ## """ """ #%""""" """"" ???### """ """ ??? | | "" """ ## """ """ #!""""" """"" ?????# ??" "?? ??? | | "" """ ## """ """ # | ???????# ??? ??? #?? | | "" """ ## """ """ # """"" """"???????#??? ???#?? | | ## """ """ # """"" """"???????????????????? | | ## #??"""? "?"????????????????????? | | ############??????????????????????????????? | | ########?????????????????????????????????????????? | | | +----------------------------------------------------+ Best States ------------- Heat Dissipation 87 Coolant Potential 100 Energy Generation 45 Energy Capacity 430 Matter Stores 700 Matter Capacity 700 Sight Range 20 Robot Scan Range 30 Terrain Scan Density 10 ECM Strength 3 Armor Coverage 2400 Resistance: KI 30 Core Shielding 20 Weapon Shielding 66 Melee Speed Boost 20 Phase Shifting 15 Evasion (%) 57 Melee Accuracy 6 Target Analysis 8 Core Analysis 10 Recoil Reduction 6 Offensive Hacking 79 Defensive Hacking 31 Item Schematics ----------------- Hcp. Storage Unit | -10/Mines | Hacked Beamcaster | -9/Materials | Scanalyzed Mak. Sword | -9/Materials | Scanalyzed Imp. Flight Unit | -9/Materials | Scanalyzed Adv. Sensor Array | -8/Materials | Hacked Imp. Proton Missile Launcher | -8/Storage | Hacked Aerolev Unit | -7/Factory | Scanalyzed Hacking Suite | -7/Factory | Scanalyzed Imp. Lightning Gun | -7/Factory | Scanalyzed System Shield | -7/Factory | Hacked Combat Drone Bay | -7/Data Miner | Free Lgt. Regenerative Plating | -7/Data Miner | Free Exp. Flexi-carbon Leg | -7/Data Miner | Free Exp. Sensor Array | -7/Data Miner | Free Exp. Transmission Jammer | -7/Data Miner | Free Plasma Sword | -7/Data Miner | Free Exp. Signal Interpreter | -6/Factory | Hacked Adv. ECM Suite | -6/Factory | Hacked Lrn. Terrain Scanner | -6/Factory | Hacked Adv. Terrain Scan Processor | -6/Factory | Hacked Nova Cannon | -6/Factory | Downloaded Hvy. Beamcaster | -6/Zion | Free Riot Gun | -6/Zion | Free Hvy. Riot Gun | -6/Zion | Free Battle Rifle | -6/Zion | Free Battle Cannon | -6/Zion | Free Plasma Flamer | -6/Zion | Free Exp. Terrain Scan Processor | -5/Factory | Hacked Hyp. Coil Gun | -5/Factory | Hacked Imp. Heavy Siege Treads | -5/Factory | Scanalyzed Enh. Nova Cannon | -5/Factory | Downloaded Hyp. Mass Driver | -4/Factory | Hacked Biometal Heavy Treads | -4/Factory | Hacked Gamma Bomb Array | -4/Extension | Hacked Dispersion Rifle | -4/Extension | Hacked Hyp. Railgun | -4/Extension | Hacked Adv. Heavy Siege Treads | -3/Research | Hacked Centrium Heavy Treads | -3/Research | Scanalyzed Vortex Chain Reactor | -3/Research | Scanalyzed Plasma Lance | -2/Research | Scanalyzed Robot Schematics ------------------ O-16 Technician | -9/Mines | Hacked S-27 Virus | -7/Data Miner | Free G-50 Soldier | -7/Data Miner | Free L-41 Fighter | -7/Data Miner | Free H-66 Slayer | -7/Data Miner | Free I-36 Angel | -7/Data Miner | Free H-77 Assassin | -4/Factory | Hacked Fabricated ------------ Imp. Proton Missile Launcher | x1 | -7/Factory Adv. Sensor Array | x1 | -7/Factory Aerolev Unit | x1 | -7/Factory Adv. Transmission Jammer | x1 | -6/Factory | Preloaded Exp. Signal Interpreter | x1 | -6/Factory Exp. Sensor Array | x1 | -6/Factory Plasma Sword | x1 | -5/Factory Plasma Sword | x1 | -5/Factory Enh. Nova Cannon | x1 | -5/Factory | Preloaded Imp. Proton Missile Launcher | x1 | -5/Factory Adv. Core Analyzer | x1 | -4/Factory | Preloaded Biometal Heavy Treads | x2 | -4/Factory Hyp. Mass Driver | x2 | -4/Factory Biometal Heavy Treads | x2 | -4/Factory Hcp. Storage Unit | x1 | -4/Factory Hcp. Storage Unit | x1 | -4/Factory Enh. Nova Cannon | x1 | -4/Factory Hyp. Railgun | x2 | -3/Research Hyp. Railgun | x2 | -3/Research Gamma Bomb Array | x1 | -3/Testing Alien Tech Used ----------------- None Achievements -------------- Woof! Challenges ------------ None Game ------ Seed AntigravTeslaMembrane Manual? 0 Play Time 04:50:36 Cumulative 383.4 hours Start 2019.10.24 @ 01:03:34 End 2019.10.25 @ 14:35:17 Sessions 7 Manual Loads 0 Difficulty Rogue Special Mode None Game No. 296 Rogue 288 Adventurer 4 Explorer 0 Win Type - Total 29 Types 23/2/1/1/2/0/0 Lore% 92 Gallery% 92 Achievement% 87 Wizard Run 0 Options --------- ASCII 0 Keyboard 1 Movement Vi Keybinds 0 Fullscreen 0 Font 16/Terminus Map View 76x50 Tactical HUD 1 Map Filters NONE Filters NONE Steam 1 RUN: f1a75a19-4d3e-43e3-88a1-593cc1838c18